Workbook

Sheet Ohjeistus
B2: Yksi yhdestä -yritysvaikutuslaskuri, versio 1.11 (19.12.2017)
B4: Yritysvaikutusten arviointi ja Yksi yhdestä -periaatteen soveltaminen - Miksi ja mitä?
C6: Tarkoituksenmukainen sääntely on välttämätöntä toimivan yhteiskunnan ja kansantalouden turvaamiseksi. Sääntelystä yrityksille aiheutuvat kustannukset voivat kuitenkin heikentää kilpailukykyä ja työllisyyttä.* Siten on tärkeää, että sääntelyä sujuvoitetaan tunnistamalla tarpeettoman raskaita menettelyitä ja korvataan niitä kevyemmillä. Hallitus linjasi strategiaistunnossaan 22.8.2016 osana ”Sujuvoitetaan säädöksiä” -kärkihankettaan, että TEM:ssä ja MMM:ssä käynnistetään ns. One-in, One-out, eli Yksi yhdestä -periaatteen soveltamisen kokeilu vuoden 2017 ajaksi. Yksi yhdestä -periaatteen soveltaminen tarkoittaa sitä, että yrityksiin kohdistuvat, kansallisista tarpeista aiheutuvat, välittömät sääntelykustannusten lisäykset korvataan vastaavan suuruisella sääntelykustannusten vähentämisellä toisessa yhteydessä. Tavoitteena on, etteivät yritysten sääntelystä aiheutuvat kustannukset ainakaan kasva. (Ks. TEM:n tiedote ja kokeiluhankkeen loppuraportti 19.12.2017.) Laskemalla euromääräiset arviot sääntelytaakan lisäyksestä tai vähenemisestä* on ainoa keino nähdä sääntelykustannusten suuruus ja kehityssuunta.
C14: Yksi yhdestä -periaatteen soveltamiseksi ja euromääräisen sääntelytaakan laskemiseksi TEM:ssä on laadittu tämä laskentapohja ja ohjeistus lainvalmistelijoille sekä vaikutusarviointeja tekeville. Laskurin on tarkoitus helpottaa lainvalmistelijoita vaikutusarvioinnin tekemisessä sekä edesauttaa arviointien yhdenmukaisuutta. Tätä laskuria voi siis käyttää ylipäätään yritysvaikutusarviointien tekemiseen siten kuin OM:n ohjeessa (2007:6) ohjeistetaan riippumatta sovelletaanko Yksi yhdestä -periaatetta.
B18: Laskentapohjan käyttö: Yksityiskohtaisemmat ohjeet tämän laskentapohjan käyttöön ovat seuraavalla välilehdellä. Ohjeita on lisäksi välilehdillä sellaisissa soluissa, joissa on punainen kulma. Vie osoitin hiirellä punakulmasolun päälle, niin näet ohjeen. Kokeile esimerkkiä tässä solussa.
C20: Toimi siis seuraavasti:
B21: 1. | C21: Lue ohjeet ja tee tarvittavat merkinnät tarkistuslistaan välilehdellä "Ohjeistus ja tarkistuslista"
B22: 2. | C22: Täytä ohjeistuksen mukaisesti tarvittavat tiedot välilehdelle "1_Velvoiteluettelo"
B23: 3. | C23: Täytä ohjeistuksen mukaisesti tarvittavat tiedot välilehdelle "2B_Työkustannus"
B24: 4. | C24: Täytä ohjeistuksen mukaisesti tarvittavat tiedot välilehdelle "3_Muut kustannukset"
B25: 5. | C25: Katso yhteenveto välilehdeltä "5_Yhteenveto"
B26: 6. | C26: Täytä tarvittaessa tietoja välilehdelle "4_Poikkeukset" (vain tarvittaessa)
C28: Tietoja syötetään vain keltaisille välilehdille, keltaisiin soluihin.
C29: Käytä tarvittaessa apuna välilehtiä "Apu2_ … Apu5_ "
C30: Älä tee mitään punaisille välilehdille "Annualisoitu NPV", "Listat (älä muuta)" ym.
C32: Katso ohjeeksi myös TEM:n Yksi yhdestä -kokeiluhankkeen tiedote ja loppuraportti (19.12.2017)
C33: sekä OM:n ohjeet säädösehdotusten vaikutusten arviointiin (OM:n ohje 2007:6)
C34: Seuraa alla olevaa kaaviota sekä seuraavalla välilehdellä olevia ohjeita ja syötä tarvittavat tiedot/arviot tämän laskentapohjan välilehdille 1, 2 ja 3 (sekä tarvittaessa 4)
C84: klikkaa kuvaa tai: http://lainvalmistelu.finlex.fi/
B88: *Lähteitä ja ohjeita
C89: Honkatukia J ja Rauhanen T, 2011, Yritysten hallinnollisen taakan vähentämisen kokonaistaloudelliset vaikutukset. VATT.
C90: Kox H, 2005, Intra-EU differences in regulation-caused administrative burden for companies. CPB Netherlands Bureau for Economic Policy Analysis.
C91: Tang P and Verweij G, 2004, Reducing the administrative burden in the European Union. CPB Netherlands Bureau for Economic Policy Analysis.
C92: OM:n ohjeet säädösehdotusten vaikutusten arviointiin (OM:n ohje 2007:6)
C93: SCM Network, 2005, International Standard Cost Model Manual, SCM Network. Saatavilla OECD:n www-sivustolta http://www.oecd.org/gov/regulatory-policy/34227698.pdf
C94: Lainsäädännön arviointineuvoston lausunnot, http://vnk.fi/arviointineuvosto
C95: Hyytinen A. ja Moisio M., 2017, Lainsäädännön arviointineuvosto – lainvalmistelun vaikutusarviointia, Kansantaloudellinen aikakauskirja, 113. vsk, 2/2017, sivu 211.
C96: Valtiontalouden tarkastusvirasto VTV, 2017, EU-lainsäädännön täytäntöönpano, tarkastuskertomus 12/2017. https://www.vtv.fi/files/5808/12_2017_EU-lainsaadannon_taytantoonpano.pdf
B98: Kehittäjät: Henrikki Oravainen ja Erno Mähönen (2017)
B99: Työ- ja elinkeinoministeriö

Sheet Ohjeistus ja tarkistuslista
B1: Ohje: Sääntelyn yrityksille aiheuttamien kustannuslisäysten ja -säästöjen arviointi sekä Yksi yhdestä -periaatteen soveltaminen
B3: Yleisiä ohjeita | F3: Ok? | G3: Lähde / lisäohje / tämän taulukon välilehtien käyttö
B4: 1. | C4: Yksi yhdestä -periaatetta sovelletaan kansallista alkuperää olevaan ja EU:n minimisääntelyn ylittävään lainsäädäntöön. | G4: Ks. TEM:n tiedote ja loppuraportti (19.12.2017)
B5: 2. | C5: Yritysvaikutukset on arvioitava normaaliin tapaan kaikissa esityksissä, myös niissä, jotka ovat EU:n minimisääntelyä. | G5: Ks. OM:n ohje s. 18-
B6: 3. | C6: Kiinnitä huomiota yritysvaikutusten arviointiin mahdollisimman varhaisessa vaiheessa lain valmisteluprosessia. | G6: Ks. Finlexin ohjeet lainvalmistelun prosessista
B7: 4. | C7: Täytä tietoja vain keltaiseksi maalattuihin soluihin. | G7: Esimerkki keltaisesta täyttösolusta
B8: 5. | C8: Tietoja tarvitsee syöttää vain välilehdille 1, 2 ja 3 (sekä tarvittaessa välilehdelle 4) | G8: Ks. Välilehdet 1, 2 ja 3 sekä tarvittaessa 4
B9: Ks. välilehti 1_Velvoiteluettelo ja hae vastauksia seuraaviin kysymyksiin:
B10: 6. | C10: Onko lainsäädännöllä yritysvaikutuksia? Jos on, mitä tietoa vaikutusten tekemiseksi vaaditaan ja mistä saada tietoa? | G10: Ks. välilehti Apu5_Tietolähteitä
B11: 7. | C11: Tunnista ja yksilöi HE:sta yrityksille lisäkustannuksia tai kustannussäästöjä aiheuttavat yksittäiset pykälät/menettelyt. | G11: Ks. välilehti 1
B12: 8. | C12: Tunnista, mitkä edellisistä ovat puhtaasti kansallista alkuperää ja mitkä EU-pohjaista. | G12: Ks. välilehti 1, sekä VTV:n tarkastuskeromus 12/2017
B13: 9. | C13: Mitkä ovat kansallisen lainsäädännön yrityksille aiheuttamat kustannuslisäykset tai kustannussäästöt? | G13: Ks. välilehdet "1_" - "5_".
B14: 10. | C14: Jos kyse on EU-direktiivin implementoinnista, arvioi vaihtoehtoja, joilla direktiivi voitaisiin implementoida.
C15: 10.1 | D15: Aseta vaihtoehdot järjestykseen yrityksille vähiten ja eniten kustannuksia aiheuttavan vaihtoehdon mukaan
C16: 10.2 | D16: Mikä vaihtoehdoista valitaan
C17: 10.3 | D17: Valitaanko implementointiin yrityksille vähiten kustannuksia aiheuttava vaihtoehto?
C18: 10.4 | D18: Perustele, miksi valitaan juuri kyseinen vaihtoehto.
C19: 10.5 | D19: Jos valitaan vähiten kustannuksia aiheuttava vaihtoehto, kyse on niin sanotusta EU-minimisääntelystä
C20: 10.6 | D20: Mitkä ovat EU-minimisääntelyn yrityksille aiheuttamat kustannuslisäykset? | G20: Ks. välilehdet "1_" - "5_".
C21: 10.7 | D21: Mitkä ovat kustannukset, jotka aiheutuvat EU-minimisääntelyn ylittävästä osasta (ns. kansallinen lisä, gold plating)? | G21: Ks. välilehdet "1_" - "5_".
B23: 11. | C23: Nimeä velvoitteet ja täytä niiden voimaantulovuosi ja luonne välilehdelle 1_Velvoiteluettelo | G23: Ks. välilehti 1
B24: Laske edellä olevista velvoitteista aiheutuvat kustannussäästöt tai kustannuslisäykset seuraavasti:
B25: 12. | C25: Selvitä ja/tai arvioi, mitkä kustannukset ovat kertaluonteisia lain tullessa voimaan ja mitkä toistuvat vuosittain. | G25: Ks. välilehti 2B
B26: 13. | C26: Selvitä toistuvien velvoitteiden osalta, kuinka monta kertaa vuodessa ne toistuvat (frekvenssi) | G26: HE:n sisällön mukaisesti
B27: 14. | C27: Selvitä, kuinka montaa yritystä velvoite koskee (kohdejoukko) | G27: Ks. välilehti Apu5_Tietolähteitä
B28: 15. | C28: Selvitä ja/tai arvioi, vaatiiko velvoitteen hoitaminen työpanosta ja kuinka kauan yritykseltä kuluu kyseisen velvoitteen hoitamiseen | G28: Ks. välilehti 2B
B29: 16. | C29: Käytä lähtökohtaisesti velvoitteen suorittajana 'Asiantuntijaa', kk-palkka 3600 eur. Tarvittaessa selvitä ja/tai arvioi, minkä vaativuustason ja palkkaluokan työntekijät suorittavat kyseistä velvoitetta. | G29: Ks. välilehti 2B
B30: 17. | C30: Syötä edelliset tiedot välilehdelle 2B
B31: 18. | C31: Kun kaikki tarvittavat tiedot on täydennetty välilehdelle 2, siirry välilehdelle 3
B32: 19. | C32: Selvitä ja/tai arvioi velvoitteiden lisäyksistä tai niiden purkamisesta yrityksille aiheutuvat muut kustannukset. Sekä säästöt että kustannukset ilmoitetaan positiivisina lukuina. Laskuri muuttaa lopputuloksen etumerkin automaattisesti. | G32: Jos kyse esim, jostain lain edellyttämästä laitehankinnasta katso Apu3
B33: 20. | C33: Syötä tiedot mahdollisista muista kustannuksista välilehdelle 3
B34: 21. | C34: Ts. selvitä ja täytä välilehdille 2 ja 3 tarvittavat tiedot yhtäältä niin sanotun standardikustannusmallin (SCM) avulla ja toisaalta selvitä ja täytä myös kaikki muut lakiehdotuksen kustannuslisäykset (esim. vaadittavat investoinnit tai tietojärjestelmämuutokset) ja/tai -säästöt. | G34: Ks. OM:n ohje s. 18-
B36: Katso yhteenveto ja kirjaa euromääräiset yritysvaikutukset HE:een
B37: 22. | C37: Kun kaikki tarvittavat tiedot on täydennetty välilehdille 2 ja 3, siirry välilehdelle 5, jolla näet yhteenvedon
B38: 23. | C38: Arvioi, näyttävätkö Yhteenvedon tiedot 'järkeviltä'. Tarkista ja muuta tietoja tarvitteassa. Kirjaa yhteenvedosta euromääräiset yritysvaikutukset HE:een. Alustavaa arviota voi ja tulee tarkistaa lausuntokierroksella sidosryhmiltä saatavilla tiedoilla.
B40: 24. | C40: Tarvittaessa täydennä vuosittaiset poikkeamat ja toimialan kasvuennuste välilehdelle 4
B42: Tarvittaessa saat lisätietoja ja -ohjeistusta
C43: Erno Mähönen | E43: Puhelin 029 50 47066, erno.mahonen@tem.fi
C44: Henrikki Oravainen | E44: Puhelin 029 50 47133, henrikki.oravainen@tem.fi
C45: Työ- ja elinkeinoministeriö

Sheet 1_Velvoiteluettelo
A1: Luettelo ja kuvaus lain edellyttämistä velvoitteista, jotka aiheuttavat yrityksille välittömiä kustannuksia, tai sellaisten velvoitteiden poistamisesta
A3: Ohjeet
B5: Kirjaa tähän lain yksittäiset velvoitelisäykset ja purettavat velvoitteet. Lisää tarvittaessa Velvoite-rivejä viereisellä painikkeella. Voit myös halutessasi eriyttää tietyn velvoitteen kahdeksi eri velvoitteeksi esim. pienten ja suurten yritysten välille, mikäli yritysvaikutukset ovat merkittävästi erilaiset erikokoisten yritysten välillä, tai eri toimialojen välillä. Kirjoita velvoitteelle 'Nimi' ja 'Kuvaus'. Valitse voimassaolon kesto ja voimaanastumisvuosi. Valitse säädöksen luonne (Kansallinen, EU, lisäys, purku).
B11: Kun olet täyttänyt tiedot, siirry välilehdelle 2B_Työkustannus
A13: Perusvuosi* | B13: 2017 | C13: *) Arvioi kustannukset valmisteluhetken nykyrahassa. Laskuri laskee Yksi yhdestä -kirjanpitoa varten valmisteluvuoden kustannuksista vertailukelpoiset arvot valittuun perusvuoteen.
B14: Lain nimi ja HE-numero:
B15: Koko yrityskentän koko, jota lakimuutos koskee (valinnainen tieto**) | E15: **) Tiedon puuttuminen voi vääristää yrityskohtaisia tuloksia.
B16: Velvoite- numero | C16: Nimi (vapaamuotoinen) | D16: Kuvaus lain yritykselle aiheuttamasta velvoitteesta tai velvoitteen purkamisesta (vapaamuotoinen) | E16: Voimassaolo-aika Valitse solujen valikosta. | F16: Voimaantulo- vuosi (ilmoita yhtenä lukuna esim. "2018") | G16: Säädöksen luonne. Valitse ao. solujen valikosta sopiva kuvailu. Sääntelyä vai sääntelyn purkua? EU-minimisääntelyä vai ei?
A17: =IF(AND(ISTEXT(C17),ISNUMBER(F17),ISTEXT(G17)),"ok",IF(AND(ISBLANK(C17),ISBLANK(F17),ISBLANK(G17)),"","täydennä!")) ->  | B17: ="Velvoite"&S17 -> Velvoite1 | E17: toistaiseksi | S17: 1
A18: =IF(AND(ISTEXT(C18),ISNUMBER(F18),ISTEXT(G18)),"ok",IF(AND(ISBLANK(C18),ISBLANK(F18),ISBLANK(G18)),"","täydennä!")) ->  | B18: ="Velvoite"&S18 -> Velvoite2 | E18: toistaiseksi | S18: =S17+1 -> 2
A19: =IF(AND(ISTEXT(C19),ISNUMBER(F19),ISTEXT(G19)),"ok",IF(AND(ISBLANK(C19),ISBLANK(F19),ISBLANK(G19)),"","täydennä!")) ->  | B19: ="Velvoite"&S19 -> Velvoite3 | E19: toistaiseksi | S19: =S18+1 -> 3
A20: =IF(AND(ISTEXT(C20),ISNUMBER(F20),ISTEXT(G20)),"ok",IF(AND(ISBLANK(C20),ISBLANK(F20),ISBLANK(G20)),"","täydennä!")) ->  | B20: ="Velvoite"&S20 -> Velvoite4 | E20: toistaiseksi | S20: =S19+1 -> 4
A21: =IF(AND(ISTEXT(C21),ISNUMBER(F21),ISTEXT(G21)),"ok",IF(AND(ISBLANK(C21),ISBLANK(F21),ISBLANK(G21)),"","täydennä!")) ->  | B21: ="Velvoite"&S21 -> Velvoite5 | E21: toistaiseksi | S21: =S20+1 -> 5
S22: =S21+1 -> 6

Sheet 2B_Työkustannus
A1: Palkkaluokat ja velvoitteen vaatima työaika --> Velvoitteiden aiheuttama työkustannus
A3: Ohjeet
C5: Täytä frekvenssi ja yritysten lukumäärä. | F5: Kirjoita tietoja vain keltaiseksi maalattuihin soluihin
C6: Täytä arviot vaadittavista työtunneista. Ks. ohjeita soluista, joissa punainen kulma. | F6: Älä muokkaa harmaalla pohjalla olevia soluja
C7: Kun olet täyttänyt tuntitiedot, siirry välilehdelle 3_Muut kustannukset | F7: =IF(ISTEXT(OFFSET('1_Velvoiteluettelo'!B$21,5,0)),OFFSET('1_Velvoiteluettelo'!B$21,5,0),"") ->  | G7: =IF(ISTEXT(OFFSET('1_Velvoiteluettelo'!C$21,5,0)),OFFSET('1_Velvoiteluettelo'!C$21,5,0),"") -> 
B9: Laskentatekijät | E9: Velvoitteen nimi | F9: =IF(ISTEXT(OFFSET('1_Velvoiteluettelo'!$C17,F105,0)),(OFFSET('1_Velvoiteluettelo'!$C17,F105,0)),"Velvoite"&F105+1) -> Velvoite1 | G9: =IF(ISTEXT(OFFSET('1_Velvoiteluettelo'!$C17,G105,0)),(OFFSET('1_Velvoiteluettelo'!$C17,G105,0)),"Velvoite"&G105+1) -> Velvoite2 | H9: =IF(ISTEXT(OFFSET('1_Velvoiteluettelo'!$C17,H105,0)),(OFFSET('1_Velvoiteluettelo'!$C17,H105,0)),"Velvoite"&H105+1) -> Velvoite3 | I9: =IF(ISTEXT(OFFSET('1_Velvoiteluettelo'!$C17,I105,0)),(OFFSET('1_Velvoiteluettelo'!$C17,I105,0)),"Velvoite"&I105+1) -> Velvoite4 | J9: =IF(ISTEXT(OFFSET('1_Velvoiteluettelo'!$C17,J105,0)),(OFFSET('1_Velvoiteluettelo'!$C17,J105,0)),"Velvoite"&J105+1) -> Velvoite5
B11: A1 | C11: Lukumäärä yrityksistä, joita velvoite tai sen purku koskee (kohdejoukko)
B12: A2 | C12: Frekvenssi per vuosi*
B14: B1 | C14: TOISTUVAT HENKILÖSTÖKUSTANNUKSET TAI -SÄÄSTÖT (1. VUOSI JA SEN JÄLKEEN)
D15: Palkkaluokka | E15: Kuukausipalkka | F15: Toistuvat työTUNNIT (raportointi, luvat, yms.) per yritys*
D16: Johtaja | E16: 6500 | F16: 0 | G16: 0 | H16: 0 | I16: 0 | J16: 0
D17: Ylemmän tason asiantuntija, erityisasiantuntija | E17: 4500 | F17: 0 | G17: 0 | H17: 0 | I17: 0 | J17: 0
C18: => | D18: Asiantuntija (oletus) | E18: 3600 | F18: 0 | G18: 0 | H18: 0 | I18: 0 | J18: 0
D19: Yleissihteeri, tallentaja, palkanlaskija | E19: 2800 | F19: 0 | G19: 0 | H19: 0 | I19: 0 | J19: 0
D20: Toimistoavustaja | E20: 2600 | F20: 0 | G20: 0 | H20: 0 | I20: 0 | J20: 0
D21: Muu, mikä? | F21: 0 | G21: 0 | H21: 0 | I21: 0 | J21: 0
D22: =D50 -> Toistuva hlöstökustannus yht kohdeyrityksille p.a. | F22: =F50 -> 0 | G22: =G50 -> 0 | H22: 0 | I22: 0 | J22: =J50 -> 0
D23: Tarkistus | F23: =IF(ISNUMBER(F11),IF(AND(AND(F87>0,ISNUMBER(OFFSET('1_Velvoiteluettelo'!$F17,F105,0))),NOT(F12=0)),"Ok!",IF(AND(AND(F87>0,ISNUMBER(OFFSET('1_Velvoiteluettelo'!$F17,F105,0))),(F12=0)),"Lisää frekvenssi!",IF(AND(F87=0,ISBLANK(OFFSET('1_Velvoiteluettelo'!$F17,F105,0))),"",IF(AND(F87>0,ISBLANK(OFFSET('1_Velvoiteluettelo'!$F17,F105,0))),"Tarkista voimaantulo!","Lisää tunnit (jos tarpeen)")))),IF(ISNUMBER(OFFSET('1_Velvoiteluettelo'!$F17,F105,0)),"Lisää yritysten lukumäärä!","")) ->  | G23: =IF(ISNUMBER(G11),IF(AND(AND(G87>0,ISNUMBER(OFFSET('1_Velvoiteluettelo'!$F17,G105,0))),NOT(G12=0)),"Ok!",IF(AND(AND(G87>0,ISNUMBER(OFFSET('1_Velvoiteluettelo'!$F17,G105,0))),(G12=0)),"Lisää frekvenssi!",IF(AND(G87=0,ISBLANK(OFFSET('1_Velvoiteluettelo'!$F17,G105,0))),"",IF(AND(G87>0,ISBLANK(OFFSET('1_Velvoiteluettelo'!$F17,G105,0))),"Tarkista voimaantulo!","Lisää tunnit (jos tarpeen)")))),IF(ISNUMBER(OFFSET('1_Velvoiteluettelo'!$F17,G105,0)),"Lisää yritysten lukumäärä!","")) ->  | H23: =IF(ISNUMBER(H11),IF(AND(AND(H87>0,ISNUMBER(OFFSET('1_Velvoiteluettelo'!$F17,H105,0))),NOT(H12=0)),"Ok!",IF(AND(AND(H87>0,ISNUMBER(OFFSET('1_Velvoiteluettelo'!$F17,H105,0))),(H12=0)),"Lisää frekvenssi!",IF(AND(H87=0,ISBLANK(OFFSET('1_Velvoiteluettelo'!$F17,H105,0))),"",IF(AND(H87>0,ISBLANK(OFFSET('1_Velvoiteluettelo'!$F17,H105,0))),"Tarkista voimaantulo!","Lisää tunnit (jos tarpeen)")))),IF(ISNUMBER(OFFSET('1_Velvoiteluettelo'!$F17,H105,0)),"Lisää yritysten lukumäärä!","")) ->  | I23: =IF(ISNUMBER(I11),IF(AND(AND(I87>0,ISNUMBER(OFFSET('1_Velvoiteluettelo'!$F17,I105,0))),NOT(I12=0)),"Ok!",IF(AND(AND(I87>0,ISNUMBER(OFFSET('1_Velvoiteluettelo'!$F17,I105,0))),(I12=0)),"Lisää frekvenssi!",IF(AND(I87=0,ISBLANK(OFFSET('1_Velvoiteluettelo'!$F17,I105,0))),"",IF(AND(I87>0,ISBLANK(OFFSET('1_Velvoiteluettelo'!$F17,I105,0))),"Tarkista voimaantulo!","Lisää tunnit (jos tarpeen)")))),IF(ISNUMBER(OFFSET('1_Velvoiteluettelo'!$F17,I105,0)),"Lisää yritysten lukumäärä!","")) ->  | J23: =IF(ISNUMBER(J11),IF(AND(AND(J87>0,ISNUMBER(OFFSET('1_Velvoiteluettelo'!$F17,J105,0))),NOT(J12=0)),"Ok!",IF(AND(AND(J87>0,ISNUMBER(OFFSET('1_Velvoiteluettelo'!$F17,J105,0))),(J12=0)),"Lisää frekvenssi!",IF(AND(J87=0,ISBLANK(OFFSET('1_Velvoiteluettelo'!$F17,J105,0))),"",IF(AND(J87>0,ISBLANK(OFFSET('1_Velvoiteluettelo'!$F17,J105,0))),"Tarkista voimaantulo!","Lisää tunnit (jos tarpeen)")))),IF(ISNUMBER(OFFSET('1_Velvoiteluettelo'!$F17,J105,0)),"Lisää yritysten lukumäärä!","")) -> 
B25: C1 | C25: KERTALUONTEISET HENKILÖSTÖKUSTANNUKSET (1. VUOSI) (sääntelyyn sopeutuminen)
D26: Palkkaluokka | E26: Kuukausipalkka | F26: Sopeuttamisesta vain kerran koituvat työTUNNIT per yritys
D27: Johtaja | E27: 6500 | F27: 0 | G27: 0 | H27: 0 | I27: 0 | J27: 0
D28: Ylemmän tason asiantuntija, erityisasiantuntija | E28: 4500 | F28: 0 | G28: 0 | H28: 0 | I28: 0 | J28: 0
C29: => | D29: Asiantuntija (oletus) | E29: 3600 | F29: 0 | G29: 0 | H29: 0 | I29: 0 | J29: 0
D30: Yleissihteeri, tallentaja, palkanlaskija | E30: 2800 | F30: 0 | G30: 0 | H30: 0 | I30: 0 | J30: 0
D31: Toimistoavustaja | E31: 2600 | F31: 0 | G31: 0 | H31: 0 | I31: 0 | J31: 0
D32: Muu, mikä? | F32: 0 | G32: 0 | H32: 0 | I32: 0 | J32: 0
D33: Kertaluonteinen hlöstökustannus yht kohdeyrityksille | F33: =F59 -> 0 | G33: =G59 -> 0 | H33: =H59 -> 0 | I33: =I59 -> 0 | J33: =J59 -> 0
D34: Tarkistus | F34: =IF(AND(F96>0,ISNUMBER(OFFSET('1_Velvoiteluettelo'!$F17,F105,0))),"Ok!",IF(AND(F96=0,ISBLANK(OFFSET('1_Velvoiteluettelo'!$F17,F105,0))),"",IF(AND(F96>0,ISBLANK(OFFSET('1_Velvoiteluettelo'!$F17,F105,0))),"Tarkista voimaantulo!","Lisää tunnit jos tarpeen"))) ->  | G34: =IF(AND(G96>0,ISNUMBER(OFFSET('1_Velvoiteluettelo'!$F17,G105,0))),"Ok!",IF(AND(G96=0,ISBLANK(OFFSET('1_Velvoiteluettelo'!$F17,G105,0))),"",IF(AND(G96>0,ISBLANK(OFFSET('1_Velvoiteluettelo'!$F17,G105,0))),"Tarkista voimaantulo!","Lisää tunnit jos tarpeen"))) ->  | H34: =IF(AND(H96>0,ISNUMBER(OFFSET('1_Velvoiteluettelo'!$F17,H105,0))),"Ok!",IF(AND(H96=0,ISBLANK(OFFSET('1_Velvoiteluettelo'!$F17,H105,0))),"",IF(AND(H96>0,ISBLANK(OFFSET('1_Velvoiteluettelo'!$F17,H105,0))),"Tarkista voimaantulo!","Lisää tunnit jos tarpeen"))) ->  | I34: =IF(AND(I96>0,ISNUMBER(OFFSET('1_Velvoiteluettelo'!$F17,I105,0))),"Ok!",IF(AND(I96=0,ISBLANK(OFFSET('1_Velvoiteluettelo'!$F17,I105,0))),"",IF(AND(I96>0,ISBLANK(OFFSET('1_Velvoiteluettelo'!$F17,I105,0))),"Tarkista voimaantulo!","Lisää tunnit jos tarpeen"))) ->  | J34: =IF(AND(J96>0,ISNUMBER(OFFSET('1_Velvoiteluettelo'!$F17,J105,0))),"Ok!",IF(AND(J96=0,ISBLANK(OFFSET('1_Velvoiteluettelo'!$F17,J105,0))),"",IF(AND(J96>0,ISBLANK(OFFSET('1_Velvoiteluettelo'!$F17,J105,0))),"Tarkista voimaantulo!","Lisää tunnit jos tarpeen"))) -> 
D36: Kirjoita tähän perustelut ja kuinka tiedot on hankittu, lähdeviittaukset.
C42: Taustalaskuja - nämä tiedoksi ja nähtäväksi, ei vaadi valmistelijalta toimenpiteitä. Jos yllä olevat tiedot täytetty, siirry seuraaville välilehdille.
C44: B1 | D44: Toistuvat henkilöstökulut tai -säästöt | F44: =F9 -> Velvoite1 | G44: =G9 -> Velvoite2 | H44: =H9 -> Velvoite3 | I44: =I9 -> Velvoite4 | J44: =J9 -> Velvoite5
D45: Käytetty keskipalkka (€/kk) | F45: =IF(ISNUMBER($E$21),F89*$E$89+F90*$E$90+F91*$E$91+F92*$E$92+F93*$E$93+F94*$E$21,F89*$E$89+F90*$E$90+F91*$E$91+F92*$E$92+F93*$E$93) -> 0 | G45: =IF(ISNUMBER($E$21),G89*$E$89+G90*$E$90+G91*$E$91+G92*$E$92+G93*$E$93+G94*$E$21,G89*$E$89+G90*$E$90+G91*$E$91+G92*$E$92+G93*$E$93) -> 0 | H45: 0 | I45: 0 | J45: 0
D46: Kk-työkustannus ml. palkan sivukulu ja yleiskulu | F46: =(1+$E$69)*F45 -> 0 | G46: =(1+$E$69)*G45 -> 0 | H46: 0 | I46: 0 | J46: 0
D47: Tuntitaksa sivu- ja yleiskuluineen (€/h) | F47: =F46/$E$78 -> 0 | G47: =G46/$E$78 -> 0 | H47: 0 | I47: 0 | J47: 0
D48: Tehtävään käytettävät tunnit p.a. | F48: =F87*F12 -> 0 | G48: =G87*G12 -> 0 | H48: =H87*H12 -> 0 | I48: =I87*I12 -> 0 | J48: =J87*J12 -> 0
D49: Kustannukset vuodessa per yritys | F49: =IF(OR(OFFSET('1_Velvoiteluettelo'!$G$17,F105,0)="EU-minimisääntelyä",OFFSET('1_Velvoiteluettelo'!$G$17,F105,0)="Kansallista tai EU-minimin ylittävää sääntelyä"),F48*F47,IF(AND(ISBLANK(OFFSET('1_Velvoiteluettelo'!$G$17,F105,0)),F48>0),"Täydennä sivu 1",(-F48*F47))) -> 0 | G49: =IF(OR(OFFSET('1_Velvoiteluettelo'!$G$17,G105,0)="EU-minimisääntelyä",OFFSET('1_Velvoiteluettelo'!$G$17,G105,0)="Kansallista tai EU-minimin ylittävää sääntelyä"),G48*G47,IF(AND(ISBLANK(OFFSET('1_Velvoiteluettelo'!$G$17,G105,0)),G48>0),"Täydennä sivu 1",(-G48*G47))) -> 0 | H49: =IF(OR(OFFSET('1_Velvoiteluettelo'!$G$17,H105,0)="EU-minimisääntelyä",OFFSET('1_Velvoiteluettelo'!$G$17,H105,0)="Kansallista tai EU-minimin ylittävää sääntelyä"),H48*H47,IF(AND(ISBLANK(OFFSET('1_Velvoiteluettelo'!$G$17,H105,0)),H48>0),"Täydennä sivu 1",(-H48*H47))) -> 0 | I49: =IF(OR(OFFSET('1_Velvoiteluettelo'!$G$17,I105,0)="EU-minimisääntelyä",OFFSET('1_Velvoiteluettelo'!$G$17,I105,0)="Kansallista tai EU-minimin ylittävää sääntelyä"),I48*I47,IF(AND(ISBLANK(OFFSET('1_Velvoiteluettelo'!$G$17,I105,0)),I48>0),"Täydennä sivu 1",(-I48*I47))) -> 0 | J49: =IF(OR(OFFSET('1_Velvoiteluettelo'!$G$17,J105,0)="EU-minimisääntelyä",OFFSET('1_Velvoiteluettelo'!$G$17,J105,0)="Kansallista tai EU-minimin ylittävää sääntelyä"),J48*J47,IF(AND(ISBLANK(OFFSET('1_Velvoiteluettelo'!$G$17,J105,0)),J48>0),"Täydennä sivu 1",(-J48*J47))) -> 0
D50: Toistuva hlöstökustannus yht kohdeyrityksille p.a. | F50: =F11*F49 -> 0 | G50: =G11*G49 -> 0 | H50: =H11*H49 -> 0 | I50: =I11*I49 -> 0 | J50: =J11*J49 -> 0
C53: C1 | D53: Kertaluontoiset henkilöstökulut | F53: =F9 -> Velvoite1 | G53: =G9 -> Velvoite2 | H53: =H9 -> Velvoite3 | I53: =I9 -> Velvoite4 | J53: =J9 -> Velvoite5
D54: Henkilöstökulut per yritys | F54: =F57*F58 -> 0 | G54: =G57*G58 -> 0 | H54: 0 | I54: 0 | J54: 0
D55: Käytetty keskipalkka (€/kk) | F55: =IF(ISNUMBER($E$32),F98*$E$89+F99*$E$90+F100*$E$91+F101*$E$92+F102*$E$93+F103*$E$32,F98*$E$89+F99*$E$90+F100*$E$91+F101*$E$92+F102*$E$93) -> 0 | G55: =IF(ISNUMBER($E$32),G98*$E$89+G99*$E$90+G100*$E$91+G101*$E$92+G102*$E$93+G103*$E$32,G98*$E$89+G99*$E$90+G100*$E$91+G101*$E$92+G102*$E$93) -> 0 | H55: 0 | I55: 0 | J55: 0
D56: Kk-työkustannus ml. palkan sivukulu ja yleiskulu | F56: =(1+$E$69)*F55 -> 0 | G56: =(1+$E$69)*G55 -> 0 | H56: 0 | I56: 0 | J56: 0
D57: Tuntitaksa sivu- ja yleiskuluineen (€/h) | F57: =F56/$E$78 -> 0 | G57: =G56/$E$78 -> 0 | H57: 0 | I57: 0 | J57: 0
D58: Tehtävään käytettävät tunnit vuodessa | F58: =F96 -> 0 | G58: =G96 -> 0 | H58: 0 | I58: 0 | J58: 0
D59: Kertaluonteinen hlöstökustannus yht. kohdeyrityksille | F59: =F54*F11 -> 0 | G59: =G54*G11 -> 0 | H59: =H54*H11 -> 0 | I59: =I54*I11 -> 0 | J59: =J54*J11 -> 0
C63: Palkan sivukulu ja yleiskulu
C64: Palkan sivukulu ja yleiskulu perustuvat … Tähän ei tarvitse syöttää tietoa, eikä tätä tarvitse kopioida. Tämä on vain tiedoksi kertoimesta, joka on valmiina laskukaavassa.
D67: Palkkojen sivukulu-% | E67: 0.346
D68: Yleiskulu-% | E68: 0.25
D69: Yhteensä | E69: =E68+E67 -> 0.596 | F69: Palkka kerrotaan kertoimella 1+(tämä %-luku)
C74: Työtunnit (yksityinen sektori)
C75: Tähän ei tarvitse syöttää tietoa, eikä tätä tarvitse kopioida. Tämä on vain tiedoksi jakajasta, joka on valmiina laskukaavassa.
E77: Työtuntia
D78: Kuukaudessa | E78: =E80*22 -> 166.716 | F78: Kuukausipalkka jaetaan tällä tuntimäärällä tuntipalkan laskemiseksi
D79: Viikossa | E79: 37.89
D80: Päivässä | E80: =E79/5 -> 7.578
D86: Tarkat palkkasummat 2016 | F86: Taustalaskuja, älä muuta alla olevien solujen tietoja
F87: =IF(ISNUMBER($E$21),SUM(F16:F21),SUM(F16:F20)) -> 0 | G87: =IF(ISNUMBER($E$21),SUM(G16:G21),SUM(G16:G20)) -> 0 | H87: =IF(ISNUMBER($E$21),SUM(H16:H21),SUM(H16:H20)) -> 0 | I87: =IF(ISNUMBER($E$21),SUM(I16:I21),SUM(I16:I20)) -> 0 | J87: =IF(ISNUMBER($E$21),SUM(J16:J21),SUM(J16:J20)) -> 0
D88: Palkkaluokka
D89: Johtaja (1 AML 2010) | E89: 6577 | F89: =IF((F$87>0),(F16/F$87),0) -> 0 | G89: 0 | H89: 0 | I89: 0 | J89: 0
D90: Ylemmän tason asiantuntija, erityisasiantuntija (2 AML 2010) | E90: 4475 | F90: 0 | G90: 0 | H90: 0 | I90: 0 | J90: 0
D91: Asiantuntija (3 AML 2010) | E91: 3590 | F91: 0 | G91: 0 | H91: 0 | I91: 0 | J91: 0
D92: Yleissihteeri, tallentaja, palkanlaskija (412, 4132, 431 AML 2010) | E92: 2790 | F92: 0 | G92: 0 | H92: 0 | I92: 0 | J92: 0
D93: Toimistoavustaja (411 AML 2010) | E93: 2579 | F93: 0 | G93: 0 | H93: 0 | I93: 0 | J93: 0
F94: 0 | G94: 0 | H94: 0 | I94: 0 | J94: 0
D95: Lähde: Tilastokeskus, palkat ja työvoimakustannukset yksityisellä sektorilla
D96: Ks. välilehti Taustatietoa palkat am lk | F96: =IF(ISNUMBER($E$32),SUM(F27:F32),SUM(F27:F31)) -> 0 | G96: =IF(ISNUMBER($E$32),SUM(G27:G32),SUM(G27:G31)) -> 0 | H96: =IF(ISNUMBER($E$32),SUM(H27:H32),SUM(H27:H31)) -> 0 | I96: =IF(ISNUMBER($E$32),SUM(I27:I32),SUM(I27:I31)) -> 0 | J96: =IF(ISNUMBER($E$32),SUM(J27:J32),SUM(J27:J31)) -> 0
F98: =IF((F$96>0),(F27/F$96),0) -> 0 | G98: 0 | H98: 0 | I98: 0 | J98: 0
F99: 0 | G99: 0 | H99: 0 | I99: 0 | J99: 0
F100: 0 | G100: 0 | H100: 0 | I100: 0 | J100: 0
F101: 0 | G101: 0 | H101: 0 | I101: 0 | J101: 0
F102: 0 | G102: 0 | H102: 0 | I102: 0 | J102: 0
F103: 0 | G103: 0 | H103: 0 | I103: 0 | J103: 0
F105: 0 | G105: =F105+1 -> 1 | H105: =G105+1 -> 2 | I105: =H105+1 -> 3 | J105: =I105+1 -> 4 | K105: =J105+1 -> 5 | L105: 4
F108: 0

Sheet 3_Muut kustannukset
A1: Muut toistuvat ja kertaluonteiset kustannuserät --> Kaikki kustannukset yhteensä
A3: Ohjeet
B5: Tällä taulukon välilehdellä lasketaan sääntelytaakka kokonaisuudessaan yritys- ja tehtäväkohtaisesti sekä samalla koskien koko kohdejoukkoa.
B6: Täydennä alla laskentataulukkoon keltaisella pohjalla olevat kohdat B2 (toistuvat) ja C2 (kertaluonteiset) tarpeen mukaan. Ks. ohjeita soluista, joissa punainen kulma.
B7: Kun olet täyttänyt tiedot, siirry joko välilehdelle | I7: "4_Poikkeukset" | J7: tai | K7: "5_Yhteenveto"
D10: A. | E10: Perustiedot, eli kohdejoukko ja frekvenssi (tiedot siirtyy välilehdeltä 2B_työkustannus. Täydennä ja korjaa nämä tarvittaessa edelliselle välilehdelle.)
I12: =IF(ISTEXT(OFFSET('1_Velvoiteluettelo'!$C17,I74,0)),(OFFSET('1_Velvoiteluettelo'!$C17,I74,0)),"Velvoite"&I74+1) -> Velvoite1 | J12: =IF(ISTEXT(OFFSET('1_Velvoiteluettelo'!$C17,J74,0)),(OFFSET('1_Velvoiteluettelo'!$C17,J74,0)),"Velvoite"&J74+1) -> Velvoite2 | K12: =IF(ISTEXT(OFFSET('1_Velvoiteluettelo'!$C17,K74,0)),(OFFSET('1_Velvoiteluettelo'!$C17,K74,0)),"Velvoite"&K74+1) -> Velvoite3 | L12: =IF(ISTEXT(OFFSET('1_Velvoiteluettelo'!$C17,L74,0)),(OFFSET('1_Velvoiteluettelo'!$C17,L74,0)),"Velvoite"&L74+1) -> Velvoite4 | M12: =IF(ISTEXT(OFFSET('1_Velvoiteluettelo'!$C17,M74,0)),(OFFSET('1_Velvoiteluettelo'!$C17,M74,0)),"Velvoite"&M74+1) -> Velvoite5
F13: A1 | G13: Kohdejoukko (yritysten lukumäärä) | I13: =OFFSET('2B_Työkustannus'!$F11,0,1*I74) -> 0 | J13: =OFFSET('2B_Työkustannus'!$F11,0,1*J74) -> 0 | K13: =OFFSET('2B_Työkustannus'!$F11,0,1*K74) -> 0 | L13: =OFFSET('2B_Työkustannus'!$F11,0,1*L74) -> 0 | M13: =OFFSET('2B_Työkustannus'!$F11,0,1*M74) -> 0
I14: =IF(AND(NOT(I30=0),ISBLANK(I13)),"Täydennä sivu 2!",IF(AND(NOT(I30=0),ISNUMBER(I13)),"Ok!","")) ->  | J14: =IF(AND(NOT(J30=0),ISBLANK(J13)),"Täydennä sivu 2!",IF(AND(NOT(J30=0),ISNUMBER(J13)),"Ok!","")) ->  | K14: =IF(AND(NOT(K30=0),ISBLANK(K13)),"Täydennä sivu 2!",IF(AND(NOT(K30=0),ISNUMBER(K13)),"Ok!","")) ->  | L14: =IF(AND(NOT(L30=0),ISBLANK(L13)),"Täydennä sivu 2!",IF(AND(NOT(L30=0),ISNUMBER(L13)),"Ok!","")) ->  | M14: =IF(AND(NOT(M30=0),ISBLANK(M13)),"Täydennä sivu 2!",IF(AND(NOT(M30=0),ISNUMBER(M13)),"Ok!","")) -> 
F15: A2 | G15: Frekvenssi per vuosi | I15: =OFFSET('2B_Työkustannus'!$F12,0,1*I74) -> 0 | J15: =OFFSET('2B_Työkustannus'!$F12,0,1*J74) -> 0 | K15: =OFFSET('2B_Työkustannus'!$F12,0,1*K74) -> 0 | L15: =OFFSET('2B_Työkustannus'!$F12,0,1*L74) -> 0 | M15: =OFFSET('2B_Työkustannus'!$F12,0,1*M74) -> 0
D17: B. | E17: Toistuvat kustannukset tai säästöt (1. vuosi ja sen jälkeen)
I18: Lain yritykselle aiheuttamat velvoitteet, joista suoria kustannuslisäyksiä tai velvoitteet, joiden purusta kustannussäästöjä
F20: B1 | G20: Toistuvat henkilöstökustannukset tai -säästöt | O20: Yhteensä
G21: Toistuva hlöstökustannus yht kohdeyrityksille p.a. | I21: =OFFSET('2B_Työkustannus'!$F22,0,1*I74) -> 0 | J21: =OFFSET('2B_Työkustannus'!$F22,0,1*J74) -> 0 | K21: =OFFSET('2B_Työkustannus'!$F22,0,1*K74) -> 0 | L21: =OFFSET('2B_Työkustannus'!$F22,0,1*L74) -> 0 | M21: =OFFSET('2B_Työkustannus'!$F22,0,1*M74) -> 0 | O21: =SUM(I21:N21) -> 0
F23: B2 | G23: Muut toistuvat kustannukset velvoitteista tai säästöt velvoitteiden purusta
H24: Hankintakustannukset per frekvenssi | I24: 0 | J24: 0 | K24: 0 | L24: 0 | M24: 0
H25: Välinekustannukset per frekvenssi | I25: 0 | J25: 0 | K25: 0 | L25: 0 | M25: 0
H26: Muut kustannukset per frekvenssi | I26: 0 | J26: 0 | K26: 0 | L26: 0 | M26: 0
H27: Kustannukset yhteensä per yritys p.a. | I27: =IF(OR(OFFSET('1_Velvoiteluettelo'!$G$17,I74,0)="EU-minimisääntelyä",OFFSET('1_Velvoiteluettelo'!$G$17,I74,0)="Kansallista tai EU-minimin ylittävää sääntelyä"),SUM(I24:I26)*I15,IF(AND(ISBLANK(OFFSET('1_Velvoiteluettelo'!$G$17,I74,0)),I24+I25+I26>0),"Täydennä sivu 1",(-SUM(I24:I26)*I15))) -> 0 | J27: =IF(OR(OFFSET('1_Velvoiteluettelo'!$G$17,J74,0)="EU-minimisääntelyä",OFFSET('1_Velvoiteluettelo'!$G$17,J74,0)="Kansallista tai EU-minimin ylittävää sääntelyä"),SUM(J24:J26)*J15,IF(AND(ISBLANK(OFFSET('1_Velvoiteluettelo'!$G$17,J74,0)),J24+J25+J26>0),"Täydennä sivu 1",(-SUM(J24:J26)*J15))) -> 0 | K27: =IF(OR(OFFSET('1_Velvoiteluettelo'!$G$17,K74,0)="EU-minimisääntelyä",OFFSET('1_Velvoiteluettelo'!$G$17,K74,0)="Kansallista tai EU-minimin ylittävää sääntelyä"),SUM(K24:K26)*K15,IF(AND(ISBLANK(OFFSET('1_Velvoiteluettelo'!$G$17,K74,0)),K24+K25+K26>0),"Täydennä sivu 1",(-SUM(K24:K26)*K15))) -> 0 | L27: =IF(OR(OFFSET('1_Velvoiteluettelo'!$G$17,L74,0)="EU-minimisääntelyä",OFFSET('1_Velvoiteluettelo'!$G$17,L74,0)="Kansallista tai EU-minimin ylittävää sääntelyä"),SUM(L24:L26)*L15,IF(AND(ISBLANK(OFFSET('1_Velvoiteluettelo'!$G$17,L74,0)),L24+L25+L26>0),"Täydennä sivu 1",(-SUM(L24:L26)*L15))) -> 0 | M27: =IF(OR(OFFSET('1_Velvoiteluettelo'!$G$17,M74,0)="EU-minimisääntelyä",OFFSET('1_Velvoiteluettelo'!$G$17,M74,0)="Kansallista tai EU-minimin ylittävää sääntelyä"),SUM(M24:M26)*M15,IF(AND(ISBLANK(OFFSET('1_Velvoiteluettelo'!$G$17,M74,0)),M24+M25+M26>0),"Täydennä sivu 1",(-SUM(M24:M26)*M15))) -> 0 | O27: =SUM(I27:N27) -> 0
G28: Muut toistuvat kustannukset yht kohdeyrityksille p.a. | I28: =IF(OR(OFFSET('1_Velvoiteluettelo'!$G$17,I74,0)="EU-minimisääntelyä",OFFSET('1_Velvoiteluettelo'!$G$17,I74,0)="Kansallista tai EU-minimin ylittävää sääntelyä"),(I24+I25+I26)*I13*I15,IF(AND(ISBLANK(OFFSET('1_Velvoiteluettelo'!$G$17,I74,0)),I24+I25+I26>0),"Täydennä sivu 1",(-(I24+I25+I26)*I13*I15))) -> 0 | J28: =IF(OR(OFFSET('1_Velvoiteluettelo'!$G$17,J74,0)="EU-minimisääntelyä",OFFSET('1_Velvoiteluettelo'!$G$17,J74,0)="Kansallista tai EU-minimin ylittävää sääntelyä"),(J24+J25+J26)*J13*J15,IF(AND(ISBLANK(OFFSET('1_Velvoiteluettelo'!$G$17,J74,0)),J24+J25+J26>0),"Täydennä sivu 1",(-(J24+J25+J26)*J13*J15))) -> 0 | K28: =IF(OR(OFFSET('1_Velvoiteluettelo'!$G$17,K74,0)="EU-minimisääntelyä",OFFSET('1_Velvoiteluettelo'!$G$17,K74,0)="Kansallista tai EU-minimin ylittävää sääntelyä"),(K24+K25+K26)*K13*K15,IF(AND(ISBLANK(OFFSET('1_Velvoiteluettelo'!$G$17,K74,0)),K24+K25+K26>0),"Täydennä sivu 1",(-(K24+K25+K26)*K13*K15))) -> 0 | L28: =IF(OR(OFFSET('1_Velvoiteluettelo'!$G$17,L74,0)="EU-minimisääntelyä",OFFSET('1_Velvoiteluettelo'!$G$17,L74,0)="Kansallista tai EU-minimin ylittävää sääntelyä"),(L24+L25+L26)*L13*L15,IF(AND(ISBLANK(OFFSET('1_Velvoiteluettelo'!$G$17,L74,0)),L24+L25+L26>0),"Täydennä sivu 1",(-(L24+L25+L26)*L13*L15))) -> 0 | M28: =IF(OR(OFFSET('1_Velvoiteluettelo'!$G$17,M74,0)="EU-minimisääntelyä",OFFSET('1_Velvoiteluettelo'!$G$17,M74,0)="Kansallista tai EU-minimin ylittävää sääntelyä"),(M24+M25+M26)*M13*M15,IF(AND(ISBLANK(OFFSET('1_Velvoiteluettelo'!$G$17,M74,0)),M24+M25+M26>0),"Täydennä sivu 1",(-(M24+M25+M26)*M13*M15))) -> 0 | O28: =SUM(I28:N28) -> 0
F30: B Yht | G30: Toistuvat kustannukset yht kohdeyrityksille | I30: =I21+I28 -> 0 | J30: =J21+J28 -> 0 | K30: =K21+K28 -> 0 | L30: =L21+L28 -> 0 | M30: =M21+M28 -> 0 | O30: =SUM(I30:N30) -> 0
D32: C. | E32: Kertaluonteiset kustannukset (1. vuosi)
I33: Lain yritykselle aiheuttamat velvoitteet, joista suoria kustannuslisäyksiä tai velvoitteet, joiden purusta kustannussäästöjä
F35: C1 | G35: Kertaluonteiset henkilöstökustannukset | O35: Yhteensä
G36: Kertaluontoinen henkilöstökustannus kaikille yrityksille yhteensä | I36: =OFFSET('2B_Työkustannus'!$F59,0,1*I74) -> 0 | J36: =OFFSET('2B_Työkustannus'!$F59,0,1*J74) -> 0 | K36: =OFFSET('2B_Työkustannus'!$F59,0,1*K74) -> 0 | L36: =OFFSET('2B_Työkustannus'!$F59,0,1*L74) -> 0 | M36: =OFFSET('2B_Työkustannus'!$F59,0,1*M74) -> 0 | O36: =SUM(I36:N36) -> 0
F38: C2 | G38: Sääntelyn yritykselle aiheuttamat muut Kertaluonteiset kustannukset
H39: Hankintakustannukset | I39: 0 | J39: 0 | K39: 0 | L39: 0 | M39: 0 | O39: =SUM(I39:N39) -> 0
H40: Välinekustannukset | I40: 0 | J40: 0 | K40: 0 | L40: 0 | M40: 0 | O40: =SUM(I40:N40) -> 0
H41: Muut kustannukset | I41: 0 | J41: 0 | K41: 0 | L41: 0 | M41: 0 | O41: =SUM(I41:N41) -> 0
H42: Kustannukset yhteensä per yritys | I42: =SUM(I39:I41) -> 0 | J42: =SUM(J39:J41) -> 0 | K42: =SUM(K39:K41) -> 0 | L42: =SUM(L39:L41) -> 0 | M42: =SUM(M39:M41) -> 0 | O42: =SUM(I42:N42) -> 0
G43: Kertaluonteiset muut kust. yht. kohdeyrityksille | I43: =IF(AND(ISBLANK(OFFSET('1_Velvoiteluettelo'!$G$17,I74,0)),I39+I40+I41>0),"Täydennä sivu 1",(SUM(I39:I41)))*I13 -> 0 | J43: =IF(AND(ISBLANK(OFFSET('1_Velvoiteluettelo'!$G$17,J74,0)),J39+J40+J41>0),"Täydennä sivu 1",(SUM(J39:J41)))*J13 -> 0 | K43: =IF(AND(ISBLANK(OFFSET('1_Velvoiteluettelo'!$G$17,K74,0)),K39+K40+K41>0),"Täydennä sivu 1",(SUM(K39:K41)))*K13 -> 0 | L43: =IF(AND(ISBLANK(OFFSET('1_Velvoiteluettelo'!$G$17,L74,0)),L39+L40+L41>0),"Täydennä sivu 1",(SUM(L39:L41)))*L13 -> 0 | M43: =IF(AND(ISBLANK(OFFSET('1_Velvoiteluettelo'!$G$17,M74,0)),M39+M40+M41>0),"Täydennä sivu 1",(SUM(M39:M41)))*M13 -> 0 | O43: =SUM(I43:N43) -> 0
F45: C Yht | G45: Kertaluonteiset kust. yht. kohdeyrityksille | I45: =I43+I36 -> 0 | J45: =J43+J36 -> 0 | K45: =K43+K36 -> 0 | L45: =L43+L36 -> 0 | M45: =M43+M36 -> 0 | O45: =SUM(I45:N45) -> 0
G48: Kirjoita tähän perustelut ja kuinka tiedot on hankittu, lähdeviittaukset.
I73: Apuruutuja, älä muuta
I74: 0 | J74: =I74+1 -> 1 | K74: =J74+1 -> 2 | L74: =K74+1 -> 3 | M74: =L74+1 -> 4 | N74: =M74+1 -> 5

Sheet 4_Poikkeukset
B2: Poikkeus: kasvava tai supistuva yritysjoukko
B4: Käytä VAIN, mikäli on uskottavasti odotettavissa, että yritysjoukko, jota sääntely koskee, on merkittävästi joko kasvamassa tai supistumassa tulevaisuudessa
C6: Yritysjoukon kasvunopeus (%) | E6: Yritysten lukumäärä | H6: =IF(AND(SUM(C8:C13)=0,SUM(E8:E13)=SUM(F8:F13)),"",IF(ISBLANK(B16),"Kirjoita perustelut!","Ok!")) -> 
C7: Vuodessa (täytä) | D7: Kymmenessä vuodessa | E7: Yrityksiä perusvuonna | F7: Yrityksiä 10 vuoden päästä
B8: =IF(ISTEXT('1_Velvoiteluettelo'!C17),'1_Velvoiteluettelo'!C17,'1_Velvoiteluettelo'!B17) -> Velvoite1 | C8: 0 | D8: =((C8+1)^10)-1 -> 0 | E8: =OFFSET('3_Muut kustannukset'!$I$13,0,'1_Velvoiteluettelo'!S17-1) -> 0 | F8: =E8+D8*E8 -> 0
B9: =IF(ISTEXT('1_Velvoiteluettelo'!C18),'1_Velvoiteluettelo'!C18,'1_Velvoiteluettelo'!B18) -> Velvoite2 | C9: 0 | D9: =((C9+1)^10)-1 -> 0 | E9: =OFFSET('3_Muut kustannukset'!$I$13,0,'1_Velvoiteluettelo'!S18-1) -> 0 | F9: =E9+D9*E9 -> 0
B10: =IF(ISTEXT('1_Velvoiteluettelo'!C19),'1_Velvoiteluettelo'!C19,'1_Velvoiteluettelo'!B19) -> Velvoite3 | C10: 0 | D10: =((C10+1)^10)-1 -> 0 | E10: =OFFSET('3_Muut kustannukset'!$I$13,0,'1_Velvoiteluettelo'!S19-1) -> 0 | F10: =E10+D10*E10 -> 0
B11: =IF(ISTEXT('1_Velvoiteluettelo'!C20),'1_Velvoiteluettelo'!C20,'1_Velvoiteluettelo'!B20) -> Velvoite4 | C11: 0 | D11: =((C11+1)^10)-1 -> 0 | E11: =OFFSET('3_Muut kustannukset'!$I$13,0,'1_Velvoiteluettelo'!S20-1) -> 0 | F11: =E11+D11*E11 -> 0
B12: =IF(ISTEXT('1_Velvoiteluettelo'!C21),'1_Velvoiteluettelo'!C21,'1_Velvoiteluettelo'!B21) -> Velvoite5 | C12: 0 | D12: =((C12+1)^10)-1 -> 0 | E12: =OFFSET('3_Muut kustannukset'!$I$13,0,'1_Velvoiteluettelo'!S21-1) -> 0 | F12: =E12+D12*E12 -> 0
B15: Perustelut (Miksi uskot yritysjoukon koon muuttuvan, lähdeviittaukset):
C25: Palaa takaisin tai siirry
C26: Ohjeisiin
C27: Tarkistuslistaan | D27: Ohjeet ja tarkistuslista
C28: Välilehdelle 1 | D28: Velvoiteluettelo
C29: Välilehdelle 2 | D29: Työkustannukset
C30: Välilehdelle 3 | D30: Muut kustannuksen ja kustannukset yhteensä
C31: Välilehdelle 5 | D31: Yhteenveto
C32: Apu2 | D32: Tehtäväkohtainen aika - apu hahmottamiseen
C33: Apu3 | D33: Laite tms kustannuksista
C34: Apu4 | D34: Yksinkertainen esimerkkilaskelma
C35: Apu5 | D35: Tietolähteitä

Sheet 5_Yhteenveto
A1: Yhteenveto ja tiedot, jotka tulee kirjata hallituksen esitykseen
A3: Ohjeet
B5: Tälle välilehdelle ei täytetä mitään tietoja. Tämä välilehti kerää muilta välilehdiltä yhteenvedon kaikista velvoitteiden aiheuttamista kustannuslisäyksistä ja -säästöistä. Välilehdellä on myös eriteltynä nettokustannukset EU-sääntelystä ja kansallisesta sääntelystä. Katso kohdat, joihin on merkitty "Kirjaa nämä hallituksen esitykseen" ja kirjoita nämä auki HE:n yritysvaikutusarvioinnin alle. Huom. ao. luvut pyöristettyjä. Kirjoita HE:een noin numeroarvon eteen. Katso tarvittaessa myös oikeusminiteriön ohje vaikutusarvioinnin laatimisesta sekä TEM/TMO/SKY:n laatima ohjeistus. (Linkit ohessa) | H5: Lisäohjeita:
H6: Oikeusministeriön ohje (2007:6) vaikutusarvioinnin laatimisesta
H7: Ks. TEM:n tiedote (19.12.2017) Yksi yhdestä -periaatteen soveltamisen kokeiluhankkeesta. Tarvittaessa lisätietoja myös laskurin kehittäjiltä. Yhteystiedot Ohjeistus ja tarkistuslista -välilehdellä.
H9: *Nettonykyarvo = Sääntelyn kustannusvaikutus yrityskentälle nykyhetkestä tulevaisuuteen mitattuna perusvuoden rahassa (rahan arvo laskee 4 % vuosivauhtia)
B10: Lopuksi, lähetä laskelma tarkistettavaksi ja tallennettavaksi (TEM). | H10: *Nettonykyarvo vuositasolla = Sääntelyn keskimääräinen kustannusvaikutus vuositasolla lain voimassaolon ajan (oletus: 10 vuotta)
A12: Yhteenveto velvoitekohtaisesti | E12: Kirjaa nämä hallituksen esitykseen! | H12: Laskennallisia eriä | L12: Kustannukset per yritys | P12: Tarkat, ei pyöristetyt arvot | U12: per yritys, tarkat, ei pyöristetyt arvot | AA12: Apulaskuruutu: EU-sääntelyosan ja kansallisen osan erottaminen
A13: Velvoite-numero | B13: Velvoitteen nimi | C13: Sääntelyn luonne | D13: Kuinka kauan voimassa? | E13: Yritysten määrä (A) | F13: Kertakustannus nykyrahassa (C) | G13: Toistuvat kustannukset (+) / säästöt (-) nykyrahassa (B) | H13: Kustannusten ja säästöjen kokonaissumman nettonykyarvo* | I13: Nettonykyarvo vuositasolla* | J13: Kannustin lainvalmistelijalle | L13: Velvoitteen nimi | M13: Kertakustannus nykyrahassa | N13: Toistuvat kustannukset (+) / säästöt (-) nykyrahassa vuosittain | P13: Kertakustannus nykyrahassa (C) | Q13: Toistuvat kustannukset (+) / säästöt (-) nykyrahassa (B) | R13: Kustannusten ja säästöjen kokonaissumman nettonykyarvo* | S13: Nettonykyarvo vuositasolla* | U13: Velvoitteen nimi | V13: Kertakustannus nykyrahassa | W13: Toistuvat kustannukset (+) / säästöt (-) nykyrahassa vuosittain | AA13: NPV:n EU-osuus | AB13: NPV:n Kansallinen osuus | AC13: Jos EU, arvo=1 | AD13: Jos kans., arvo=1 | AF13: Kerta- kustannusten EU-osuus | AG13: Toistuvien kustannusten EU-osuus | AH13: Kerta- kustannusten kans. osuus | AI13: Toistuvien kustannusten kans. osuus
A14: ='1_Velvoiteluettelo'!B17 -> Velvoite1 | B14: =IF(ISTEXT('1_Velvoiteluettelo'!C17),'1_Velvoiteluettelo'!C17,"") ->  | C14: =IF(ISTEXT('1_Velvoiteluettelo'!G17),'1_Velvoiteluettelo'!G17,"") ->  | D14: ='1_Velvoiteluettelo'!E17 -> toistaiseksi | E14: =IF(ISNUMBER(OFFSET('3_Muut kustannukset'!$I$13,0,AE14)),OFFSET('3_Muut kustannukset'!$I$13,0,AE14),("-")) -> 0 | F14: =IF(P14>0,IF(OR((P14=1000000),(P14<1000000)),MROUND(P14,1000),IF(P14<10000000,MROUND(P14,10000),MROUND(P14,100000))),IF(OR((ABS(P14)=1000000),(ABS(P14)<1000000)),MROUND(P14,-1000),IF(ABS(P14)<10000000,MROUND(P14,-10000),MROUND(P14,-100000)))) -> 0 | G14: =IF(Q14>0,IF(OR((Q14=1000000),(Q14<1000000)),MROUND(Q14,1000),IF(Q14<10000000,MROUND(Q14,10000),MROUND(Q14,100000))),IF(OR((ABS(Q14)=1000000),(ABS(Q14)<1000000)),MROUND(Q14,-1000),IF(ABS(Q14)<10000000,MROUND(Q14,-10000),MROUND(Q14,-100000)))) -> 0 | H14: =IF(R14>0,IF(OR((R14=100000),(R14<100000)),MROUND(R14,1000),IF(R14<1000000,MROUND(R14,10000),MROUND(R14,100000))),IF(OR((ABS(R14)=100000),(ABS(R14)<100000)),MROUND(R14,-1000),IF(ABS(R14)<1000000,MROUND(R14,-10000),MROUND(R14,-100000)))) -> 0 | I14: =IF(S14>0,IF(OR((S14=100000),(S14<100000)),MROUND(S14,1000),IF(S14<1000000,MROUND(S14,10000),MROUND(S14,100000))),IF(OR((ABS(S14)=100000),(ABS(S14)<100000)),MROUND(S14,-1000),IF(ABS(S14)<1000000,MROUND(S14,-10000),MROUND(S14,-100000)))) -> 0 | J14: =IF(ISBLANK('1_Velvoiteluettelo'!G17),"",IF(S14>0,"Hae yrityksille säästöjä!","Hyvä, yritysten sääntelytaakka ei kasva!")) ->  | L14: =IF(ISTEXT('1_Velvoiteluettelo'!C17),'1_Velvoiteluettelo'!C17,"") ->  | M14: =IF(V14>0,IF(OR((V14=1000),(V14<1000)),MROUND(V14,10),IF(V14<100000,MROUND(V14,100),MROUND(V14,1000))),IF(OR((ABS(V14)=1000),(ABS(V14)<1000)),MROUND(V14,-10),IF(ABS(V14)<100000,MROUND(V14,-100),MROUND(V14,-1000)))) -> 0 | N14: =IF(W14>0,IF(OR((W14=1000),(W14<1000)),MROUND(W14,10),IF(W14<100000,MROUND(W14,100),MROUND(W14,1000))),IF(OR((ABS(W14)=1000),(ABS(W14)<1000)),MROUND(W14,-10),IF(ABS(W14)<100000,MROUND(W14,-100),MROUND(W14,-1000)))) -> 0 | P14: =OFFSET('3_Muut kustannukset'!I$45,0,AE14) -> 0 | Q14: =OFFSET('3_Muut kustannukset'!I$30,0,AE14) -> 0 | R14: =OFFSET('Annualisoitu NPV'!$D$38,0,AE14) -> 0 | S14: =OFFSET('Annualisoitu NPV'!$D$40,0,AE14) -> 0 | U14: =IF(ISTEXT('1_Velvoiteluettelo'!C17),'1_Velvoiteluettelo'!C17,"") ->  | V14: =IF(AND(NOT(E14=0),(ISNUMBER(E14))),P14/E14,"0") -> 0 | W14: =IF(AND(NOT(E14=0),(ISNUMBER(E14))),Q14/E14,"0") -> 0 | AA14: =R14*AC14 -> 0 | AB14: =R14*AD14 -> 0 | AC14: =IF(OR(C14="EU-minimisääntelyä",C14="EU:n velvoittamaa sääntelyn purkua"),1,IF(ISBLANK(C14),"",0)) -> 0 | AD14: =IF(OR(C14="EU-minimisääntelyä",C14="EU:n velvoittamaa sääntelyn purkua"),0,IF(ISBLANK(C14),"",1)) -> 1 | AE14: 0 | AF14: =P14*$AC14 -> 0 | AG14: =Q14*$AC14 -> 0 | AH14: =P14*$AD14 -> 0 | AI14: =Q14*$AD14 -> 0
A15: ='1_Velvoiteluettelo'!B18 -> Velvoite2 | B15: =IF(ISTEXT('1_Velvoiteluettelo'!C18),'1_Velvoiteluettelo'!C18,"") ->  | C15: =IF(ISTEXT('1_Velvoiteluettelo'!G18),'1_Velvoiteluettelo'!G18,"") ->  | D15: ='1_Velvoiteluettelo'!E18 -> toistaiseksi | E15: =IF(ISNUMBER(OFFSET('3_Muut kustannukset'!$I$13,0,AE15)),OFFSET('3_Muut kustannukset'!$I$13,0,AE15),("-")) -> 0 | F15: =IF(P15>0,IF(OR((P15=1000000),(P15<1000000)),MROUND(P15,1000),IF(P15<10000000,MROUND(P15,10000),MROUND(P15,100000))),IF(OR((ABS(P15)=1000000),(ABS(P15)<1000000)),MROUND(P15,-1000),IF(ABS(P15)<10000000,MROUND(P15,-10000),MROUND(P15,-100000)))) -> 0 | G15: =IF(Q15>0,IF(OR((Q15=1000000),(Q15<1000000)),MROUND(Q15,1000),IF(Q15<10000000,MROUND(Q15,10000),MROUND(Q15,100000))),IF(OR((ABS(Q15)=1000000),(ABS(Q15)<1000000)),MROUND(Q15,-1000),IF(ABS(Q15)<10000000,MROUND(Q15,-10000),MROUND(Q15,-100000)))) -> 0 | H15: =IF(R15>0,IF(OR((R15=100000),(R15<100000)),MROUND(R15,1000),IF(R15<1000000,MROUND(R15,10000),MROUND(R15,100000))),IF(OR((ABS(R15)=100000),(ABS(R15)<100000)),MROUND(R15,-1000),IF(ABS(R15)<1000000,MROUND(R15,-10000),MROUND(R15,-100000)))) -> 0 | I15: =IF(S15>0,IF(OR((S15=100000),(S15<100000)),MROUND(S15,1000),IF(S15<1000000,MROUND(S15,10000),MROUND(S15,100000))),IF(OR((ABS(S15)=100000),(ABS(S15)<100000)),MROUND(S15,-1000),IF(ABS(S15)<1000000,MROUND(S15,-10000),MROUND(S15,-100000)))) -> 0 | J15: =IF(ISBLANK('1_Velvoiteluettelo'!G18),"",IF(I15>0,"Hae yrityksille säästöjä!","Hyvä, yritysten sääntelytaakka ei kasva!")) ->  | L15: =IF(ISTEXT('1_Velvoiteluettelo'!C18),'1_Velvoiteluettelo'!C18,"") ->  | M15: =IF(V15>0,IF(OR((V15=1000),(V15<1000)),MROUND(V15,10),IF(V15<100000,MROUND(V15,100),MROUND(V15,1000))),IF(OR((ABS(V15)=1000),(ABS(V15)<1000)),MROUND(V15,-10),IF(ABS(V15)<100000,MROUND(V15,-100),MROUND(V15,-1000)))) -> 0 | N15: =IF(W15>0,IF(OR((W15=1000),(W15<1000)),MROUND(W15,10),IF(W15<100000,MROUND(W15,100),MROUND(W15,1000))),IF(OR((ABS(W15)=1000),(ABS(W15)<1000)),MROUND(W15,-10),IF(ABS(W15)<100000,MROUND(W15,-100),MROUND(W15,-1000)))) -> 0 | P15: =OFFSET('3_Muut kustannukset'!I$45,0,AE15) -> 0 | Q15: =OFFSET('3_Muut kustannukset'!I$30,0,AE15) -> 0 | R15: =OFFSET('Annualisoitu NPV'!$D$38,0,AE15) -> 0 | S15: =OFFSET('Annualisoitu NPV'!$D$40,0,AE15) -> 0 | U15: =IF(ISTEXT('1_Velvoiteluettelo'!C18),'1_Velvoiteluettelo'!C18,"") ->  | V15: =IF(AND(NOT(E15=0),(ISNUMBER(E15))),P15/E15,"0") -> 0 | W15: =IF(AND(NOT(E15=0),(ISNUMBER(E15))),Q15/E15,"0") -> 0 | AA15: =R15*AC15 -> 0 | AB15: =R15*AD15 -> 0 | AC15: =IF(OR(C15="EU-minimisääntelyä",C15="EU:n velvoittamaa sääntelyn purkua"),1,IF(ISBLANK(C15),"",0)) -> 0 | AD15: =IF(OR(C15="EU-minimisääntelyä",C15="EU:n velvoittamaa sääntelyn purkua"),0,IF(ISBLANK(C15),"",1)) -> 1 | AE15: =AE14+1 -> 1 | AF15: =P15*$AC15 -> 0 | AG15: =Q15*$AC15 -> 0 | AH15: =P15*$AD15 -> 0 | AI15: =Q15*$AD15 -> 0
A16: ='1_Velvoiteluettelo'!B19 -> Velvoite3 | B16: =IF(ISTEXT('1_Velvoiteluettelo'!C19),'1_Velvoiteluettelo'!C19,"") ->  | C16: =IF(ISTEXT('1_Velvoiteluettelo'!G19),'1_Velvoiteluettelo'!G19,"") ->  | D16: ='1_Velvoiteluettelo'!E19 -> toistaiseksi | E16: =IF(ISNUMBER(OFFSET('3_Muut kustannukset'!$I$13,0,AE16)),OFFSET('3_Muut kustannukset'!$I$13,0,AE16),("-")) -> 0 | F16: 0 | G16: 0 | H16: 0 | I16: 0 | J16: =IF(ISBLANK('1_Velvoiteluettelo'!G19),"",IF(I16>0,"Hae yrityksille säästöjä!","Hyvä, yritysten sääntelytaakka ei kasva!")) ->  | L16: =IF(ISTEXT('1_Velvoiteluettelo'!C19),'1_Velvoiteluettelo'!C19,"") ->  | M16: 0 | N16: 0 | P16: =OFFSET('3_Muut kustannukset'!I$45,0,AE16) -> 0 | Q16: =OFFSET('3_Muut kustannukset'!I$30,0,AE16) -> 0 | R16: =OFFSET('Annualisoitu NPV'!$D$38,0,AE16) -> 0 | S16: =OFFSET('Annualisoitu NPV'!$D$40,0,AE16) -> 0 | U16: =IF(ISTEXT('1_Velvoiteluettelo'!C19),'1_Velvoiteluettelo'!C19,"") ->  | V16: 0 | W16: 0 | AA16: 0 | AB16: 0 | AC16: =IF(OR(C16="EU-minimisääntelyä",C16="EU:n velvoittamaa sääntelyn purkua"),1,IF(ISBLANK(C16),"",0)) -> 0 | AD16: =IF(OR(C16="EU-minimisääntelyä",C16="EU:n velvoittamaa sääntelyn purkua"),0,IF(ISBLANK(C16),"",1)) -> 1 | AE16: =AE15+1 -> 2 | AF16: 0 | AG16: 0 | AH16: 0 | AI16: 0
A17: ='1_Velvoiteluettelo'!B20 -> Velvoite4 | B17: =IF(ISTEXT('1_Velvoiteluettelo'!C20),'1_Velvoiteluettelo'!C20,"") ->  | C17: =IF(ISTEXT('1_Velvoiteluettelo'!G20),'1_Velvoiteluettelo'!G20,"") ->  | D17: ='1_Velvoiteluettelo'!E20 -> toistaiseksi | E17: =IF(ISNUMBER(OFFSET('3_Muut kustannukset'!$I$13,0,AE17)),OFFSET('3_Muut kustannukset'!$I$13,0,AE17),("-")) -> 0 | F17: 0 | G17: 0 | H17: 0 | I17: 0 | J17: =IF(ISBLANK('1_Velvoiteluettelo'!G20),"",IF(I17>0,"Hae yrityksille säästöjä!","Hyvä, yritysten sääntelytaakka ei kasva!")) ->  | L17: =IF(ISTEXT('1_Velvoiteluettelo'!C20),'1_Velvoiteluettelo'!C20,"") ->  | M17: 0 | N17: 0 | P17: =OFFSET('3_Muut kustannukset'!I$45,0,AE17) -> 0 | Q17: =OFFSET('3_Muut kustannukset'!I$30,0,AE17) -> 0 | R17: =OFFSET('Annualisoitu NPV'!$D$38,0,AE17) -> 0 | S17: =OFFSET('Annualisoitu NPV'!$D$40,0,AE17) -> 0 | U17: =IF(ISTEXT('1_Velvoiteluettelo'!C20),'1_Velvoiteluettelo'!C20,"") ->  | V17: 0 | W17: 0 | AA17: 0 | AB17: 0 | AC17: =IF(OR(C17="EU-minimisääntelyä",C17="EU:n velvoittamaa sääntelyn purkua"),1,IF(ISBLANK(C17),"",0)) -> 0 | AD17: =IF(OR(C17="EU-minimisääntelyä",C17="EU:n velvoittamaa sääntelyn purkua"),0,IF(ISBLANK(C17),"",1)) -> 1 | AE17: =AE16+1 -> 3 | AF17: 0 | AG17: 0 | AH17: 0 | AI17: 0
A18: ='1_Velvoiteluettelo'!B21 -> Velvoite5 | B18: =IF(ISTEXT('1_Velvoiteluettelo'!C21),'1_Velvoiteluettelo'!C21,"") ->  | C18: =IF(ISTEXT('1_Velvoiteluettelo'!G21),'1_Velvoiteluettelo'!G21,"") ->  | D18: ='1_Velvoiteluettelo'!E21 -> toistaiseksi | E18: =IF(ISNUMBER(OFFSET('3_Muut kustannukset'!$I$13,0,AE18)),OFFSET('3_Muut kustannukset'!$I$13,0,AE18),("-")) -> 0 | F18: =IF(P18>0,IF(OR((P18=1000000),(P18<1000000)),MROUND(P18,1000),IF(P18<10000000,MROUND(P18,10000),MROUND(P18,100000))),IF(OR((ABS(P18)=1000000),(ABS(P18)<1000000)),MROUND(P18,-1000),IF(ABS(P18)<10000000,MROUND(P18,-10000),MROUND(P18,-100000)))) -> 0 | G18: 0 | H18: 0 | I18: 0 | J18: =IF(ISBLANK('1_Velvoiteluettelo'!G21),"",IF(I18>0,"Hae yrityksille säästöjä!","Hyvä, yritysten sääntelytaakka ei kasva!")) ->  | L18: =IF(ISTEXT('1_Velvoiteluettelo'!C21),'1_Velvoiteluettelo'!C21,"") ->  | M18: =IF(V18>0,IF(OR((V18=1000),(V18<1000)),MROUND(V18,10),IF(V18<100000,MROUND(V18,100),MROUND(V18,1000))),IF(OR((ABS(V18)=1000),(ABS(V18)<1000)),MROUND(V18,-10),IF(ABS(V18)<100000,MROUND(V18,-100),MROUND(V18,-1000)))) -> 0 | N18: 0 | P18: =OFFSET('3_Muut kustannukset'!I$45,0,AE18) -> 0 | Q18: =OFFSET('3_Muut kustannukset'!I$30,0,AE18) -> 0 | R18: =OFFSET('Annualisoitu NPV'!$D$38,0,AE18) -> 0 | S18: =OFFSET('Annualisoitu NPV'!$D$40,0,AE18) -> 0 | U18: =IF(ISTEXT('1_Velvoiteluettelo'!C21),'1_Velvoiteluettelo'!C21,"") ->  | V18: =IF(AND(NOT(E18=0),(ISNUMBER(E18))),P18/E18,"0") -> 0 | W18: 0 | AA18: 0 | AB18: 0 | AC18: =IF(OR(C18="EU-minimisääntelyä",C18="EU:n velvoittamaa sääntelyn purkua"),1,IF(ISBLANK(C18),"",0)) -> 0 | AD18: =IF(OR(C18="EU-minimisääntelyä",C18="EU:n velvoittamaa sääntelyn purkua"),0,IF(ISBLANK(C18),"",1)) -> 1 | AE18: =AE17+1 -> 4 | AF18: 0 | AG18: 0 | AH18: 0 | AI18: 0
AE19: =AE18+1 -> 5
A20: Yhteensä | E20: =IF(ISNUMBER('1_Velvoiteluettelo'!D15),'1_Velvoiteluettelo'!D15,MAX(E14:E19)) -> 0 | F20: =IF(P20>0,IF(OR((P20=1000000),(P20<1000000)),MROUND(P20,1000),IF(P20<10000000,MROUND(P20,10000),MROUND(P20,100000))),IF(OR((ABS(P20)=1000000),(ABS(P20)<1000000)),MROUND(P20,-1000),IF(ABS(P20)<10000000,MROUND(P20,-10000),MROUND(P20,-100000)))) -> 0 | G20: =IF(Q20>0,IF(OR((Q20=1000000),(Q20<1000000)),MROUND(Q20,1000),IF(Q20<10000000,MROUND(Q20,10000),MROUND(Q20,100000))),IF(OR((ABS(Q20)=1000000),(ABS(Q20)<1000000)),MROUND(Q20,-1000),IF(ABS(Q20)<10000000,MROUND(Q20,-10000),MROUND(Q20,-100000)))) -> 0 | H20: =IF(R20>0,IF(OR((R20=1000000),(R20<1000000)),MROUND(R20,1000),IF(R20<10000000,MROUND(R20,10000),MROUND(R20,100000))),IF(OR((ABS(R20)=1000000),(ABS(R20)<1000000)),MROUND(R20,-1000),IF(ABS(R20)<10000000,MROUND(R20,-10000),MROUND(R20,-100000)))) -> 0 | I20: =IF(S20>0,IF(OR((S20=1000000),(S20<1000000)),MROUND(S20,1000),IF(S20<10000000,MROUND(S20,10000),MROUND(S20,100000))),IF(OR((ABS(S20)=1000000),(ABS(S20)<1000000)),MROUND(S20,-1000),IF(ABS(S20)<10000000,MROUND(S20,-10000),MROUND(S20,-100000)))) -> 0 | J20: =IF(NOT(I20=0),IF(I20>0,"HAE YRITYKSILLE SÄÄSTÖJÄ!","HYVÄ, YRITYSTEN SÄÄNTELYTAAKKA EI KASVA!"),"") ->  | L20: Yht. keskimäärin | M20: =IF(V20>0,IF(OR((V20=1000),(V20<1000)),MROUND(V20,10),IF(V20<100000,MROUND(V20,100),MROUND(V20,1000))),IF(OR((ABS(V20)=1000),(ABS(V20)<1000)),MROUND(V20,-10),IF(ABS(V20)<100000,MROUND(V20,-100),MROUND(V20,-1000)))) -> 0 | N20: =IF(W20>0,IF(OR((W20=1000),(W20<1000)),MROUND(W20,10),IF(W20<100000,MROUND(W20,100),MROUND(W20,1000))),IF(OR((ABS(W20)=1000),(ABS(W20)<1000)),MROUND(W20,-10),IF(ABS(W20)<100000,MROUND(W20,-100),MROUND(W20,-1000)))) -> 0 | P20: =SUM(P14:P19) -> 0 | Q20: =SUM(Q14:Q19) -> 0 | R20: ='Annualisoitu NPV'!$J$38 -> 0 | S20: ='Annualisoitu NPV'!$J$40 -> 0 | U20: Yht. keskimäärin | V20: =IF(AND(NOT(E20=0),(ISNUMBER(E20))),F20/E20,"0") -> 0 | W20: =IF(AND(NOT(E20=0),(ISNUMBER(E20))),G20/E20,"0") -> 0 | AA20: =SUM(AA14:AA19) -> 0 | AB20: =SUM(AB14:AB19) -> 0 | AF20: =SUM(AF14:AF19) -> 0 | AG20: =SUM(AG14:AG19) -> 0 | AH20: =SUM(AH14:AH19) -> 0 | AI20: =SUM(AI14:AI19) -> 0
B22: Kustannuslisäyksen / -säästön erittely EU-sääntelyn osalta ja kansallisen sääntelyn osalta | P22: Tarkat, ei pyöristetyt arvot
F23: Kertakustannus nykyrahassa | G23: Toistuvat kustannukset (+) / säästöt (-) nykyrahassa | H23: Kustannusten ja säästöjen kokonaissumman nettonykyarvo* | I23: Nettonykyarvo vuositasolla* | J23: Kustannus vai kustannussäästö? | R23: Kustannusten ja säästöjen kokonaissumman nettonykyarvo* | S23: Nettonykyarvo vuositasolla*
B24: EU-sääntelyn kustannusvaikutus yrityksille: | F24: =IF(AF20>0,IF(OR((AF20=1000000),(AF20<1000000)),MROUND(AF20,1000),IF(AF20<10000000,MROUND(AF20,10000),MROUND(AF20,100000))),IF(OR((ABS(AF20)=1000000),(ABS(AF20)<1000000)),MROUND(AF20,-1000),IF(ABS(AF20)<10000000,MROUND(AF20,-10000),MROUND(AF20,-100000)))) -> 0 | G24: =IF(AG20>0,IF(OR((AG20=1000000),(AG20<1000000)),MROUND(AG20,1000),IF(AG20<10000000,MROUND(AG20,10000),MROUND(AG20,100000))),IF(OR((ABS(AG20)=1000000),(ABS(AG20)<1000000)),MROUND(AG20,-1000),IF(ABS(AG20)<10000000,MROUND(AG20,-10000),MROUND(AG20,-100000)))) -> 0 | H24: =IF(R24>0,IF(OR((R24=100000),(R24<100000)),MROUND(R24,1000),IF(R24<1000000,MROUND(R24,10000),MROUND(R24,100000))),IF(OR((ABS(R24)=100000),(ABS(R24)<100000)),MROUND(R24,-1000),IF(ABS(R24)<1000000,MROUND(R24,-10000),MROUND(R24,-100000)))) -> 0 | I24: =IF(S24>0,IF(OR((S24=100000),(S24<100000)),MROUND(S24,1000),IF(S24<1000000,MROUND(S24,10000),MROUND(S24,100000))),IF(OR((ABS(S24)=100000),(ABS(S24)<100000)),MROUND(S24,-1000),IF(ABS(S24)<1000000,MROUND(S24,-10000),MROUND(S24,-100000)))) -> 0 | J24: =IF(H24>0,"KUSTANNUS YRITYKSILLE",IF(H24<0,"SÄÄSTÖÄ YRITYKSILLE","")) ->  | P24: EU-sääntely | R24: =AA20 -> 0 | S24: =(AA20*'Annualisoitu NPV'!$D$24)/(1-(1+'Annualisoitu NPV'!$D$24)^(-10)) -> 0
B25: Kansallisen sääntelyn kustannusvaikutus yrityksille: | F25: =IF(AH20>0,IF(OR((AH20=1000000),(AH20<1000000)),MROUND(AH20,1000),IF(AH20<10000000,MROUND(AH20,10000),MROUND(AH20,100000))),IF(OR((ABS(AH20)=1000000),(ABS(AH20)<1000000)),MROUND(AH20,-1000),IF(ABS(AH20)<10000000,MROUND(AH20,-10000),MROUND(AH20,-100000)))) -> 0 | G25: =IF(AI20>0,IF(OR((AI20=1000000),(AI20<1000000)),MROUND(AI20,1000),IF(AI20<1000000,MROUND(AI20,10000),MROUND(AI20,100000))),IF(OR((ABS(AI20)=1000000),(ABS(AI20)<1000000)),MROUND(AI20,-1000),IF(ABS(AI20)<1000000,MROUND(AI20,-10000),MROUND(AI20,-100000)))) -> 0 | H25: =IF(R25>0,IF(OR((R25=100000),(R25<100000)),MROUND(R25,1000),IF(R25<1000000,MROUND(R25,10000),MROUND(R25,100000))),IF(OR((ABS(R25)=100000),(ABS(R25)<100000)),MROUND(R25,-1000),IF(ABS(R25)<1000000,MROUND(R25,-10000),MROUND(R25,-100000)))) -> 0 | I25: =IF(S25>0,IF(OR((S25=100000),(S25<100000)),MROUND(S25,1000),IF(S25<1000000,MROUND(S25,10000),MROUND(S25,100000))),IF(OR((ABS(S25)=100000),(ABS(S25)<100000)),MROUND(S25,-1000),IF(ABS(S25)<1000000,MROUND(S25,-10000),MROUND(S25,-100000)))) -> 0 | J25: =IF(H25>0,"KUSTANNUS YRITYKSILLE",IF(H25<0,"SÄÄSTÖÄ YRITYKSILLE","")) ->  | P25: Kansallinen | R25: =AB20 -> 0 | S25: =(AB20*'Annualisoitu NPV'!$D$24)/(1-(1+'Annualisoitu NPV'!$D$24)^(-10)) -> 0
F26: Kirjaa nämä hallituksen esitykseen!

Sheet Apu2_Aika per tehtävä
A1: Aputaulukko 2 - lain edellyttämän tehtävän suorittamiseen kuluva aika vuodessa
A2: Perustuu standardikustannusmallin (SCM) mukaiseen arviointiin (ks. OM 2007:6 ja SCM Network)
A3: Ohjeet:
A4: 1 ) | B4: Sääntelytaakan laskennan perustekijänä on se työaika, jonka joku tai jotkut yrityksen työntekijöistä joutuu/joutuvat käyttämään lain edellyttämän tehtävän suorittamiseen (esim. jonkin asian ilmoittaminen viranomaiselle). Vaihtoehtoisesti yritys voi myös ulkoistaa jonkin tehtävän (esim. tilintarkastus), jolloin ulkoistuskustannus lasketaan muiden kustannusten yhteydessä (välilehti 3_Muut kustannukset).
A5: 2 ) | B5: Tätä välilehteä voit käyttää apuna arvioidessasi lain edellyttämään tehtävään käytettävää kokonaisaikaa.
A6: 3 ) | B6: Tietoa tai arviota lain edellyttämän tehtävän vaatimasta työajasta voi kysyä esimerkiksi lakia valmistelevan työryhmän jäseniltä, toimialayhdistyksiltä, toimialan sääntelyviranomaiselta tai suoraan yrityksiltä.
A7: 4 ) | B7: Ensin voi arvioida paljonko käytetty aika on tehtäväkohtaisesti (tehtävän kesto per yksi tehtäväkerta) ja tämän jälkeen taulukosta voi katsoa kokonaisajan riippuen siitä, kuinka monta kertaa vuodessa laki edellyttää tehtävän suorittamisen (frekvenssi).
A8: 5 ) | B8: Alla olevan taulukon avulla voi myös arvioida sitä, 1) kuinka paljon suurempi kustannus yrityksille aiheutuu, jos esim. jokin ilmoitusvelvollisuus on neljästi vuodessa sen sijaan, että se olisi vain kerran vuodessa tai 2) onko jokin ilmoitusvelvollisuus ylipäätään tarpeen lain tavoitteiden saavuttamiseksi (kustannus-hyöty-analyysi per lain yrityksille asettama velvoite).
A9: 6 ) | B9: Tieto tai paras mahdollinen arvio tehtävään käytettävästä ajasta syötetään laskelmaan tämän taulukon välilehdelle 2B_Työkustannus.
B12: Kuinka usein lain edellyttämä tehtävä tulee suorittaa | C12: Kuinka monta kertaa vuodessa tehtävä suoritetaan (frekvenssi) | D12: Aika tunteina | E12: Tehtävän kesto per yksi tehtäväkerta
E13: 1 min | F13: 15 min | G13: 30 min | H13: 1 tunti | I13: 2 tuntia | J13: 3 tuntia | K13: … | L13: 1 työpäivää | M13: 2 työpäivää | N13: 3 työpäivää | O13: 4 työpäivää | P13: 5 työpäivää
E14: =1/60 -> 0.01666666667 | F14: 0.25 | G14: 0.5 | H14: 1 | I14: 2 | J14: 3 | L14: ='2B_Työkustannus'!E80 -> 7.578 | M14: =2*L14 -> 15.156 | N14: =3*$L$14 -> 22.734 | O14: =4*$L$14 -> 30.312 | P14: =5*$L$14 -> 37.89
B15: joka päivä | C15: 365 | E15: =$C15*E$14 -> 6.083333333 | F15: =$C15*F$14 -> 91.25 | G15: 182.5 | H15: 365 | I15: 730 | J15: 1095 | L15: =$C15*L$14 -> 2765.97 | M15: - | N15: - | O15: - | P15: -
B16: joka viikko | C16: 52 | E16: 0.8666666667 | F16: 13 | G16: 26 | H16: 52 | I16: 104 | J16: 156 | L16: =$C16*L$14 -> 394.056 | M16: 788.112 | N16: 1182.168 | O16: 1576.224 | P16: 1970.28
B17: kerran kuukaudessa | C17: 12 | E17: 0.2 | F17: 3 | G17: 6 | H17: 12 | I17: 24 | J17: 36 | L17: 90.936 | M17: 181.872 | N17: 272.808 | O17: 363.744 | P17: 454.68
B18: neljä kertaa vuodessa | C18: 4 | E18: 0.06666666667 | F18: 1 | G18: 2 | H18: 4 | I18: 8 | J18: 12 | L18: 30.312 | M18: 60.624 | N18: 90.936 | O18: 121.248 | P18: 151.56
B19: kaksi kertaa vuodessa | C19: 2 | E19: 0.03333333333 | F19: 0.5 | G19: 1 | H19: 2 | I19: 4 | J19: 6 | L19: 15.156 | M19: 30.312 | N19: 45.468 | O19: 60.624 | P19: 75.78
B20: kerran vuodessa | C20: 1 | E20: 0.01666666667 | F20: 0.25 | G20: 0.5 | H20: 1 | I20: 2 | J20: 3 | L20: 7.578 | M20: 15.156 | N20: 22.734 | O20: 30.312 | P20: 37.89
B23: Alla esimerkki, jossa
B24: yrityksen työntekijät laativat ja toimittavat TUKESille kaivoslain edellyttämän kaivoskartan. Oletuksena on, että yrityksiltä saatujen tietojen mukaan keskimäärin | K24: Tämä vain esimerkinomaisesti.
B25: - asiantuntijalta kuluu kartan laatimiseen 2 työpäivää (15,16 tuntia) ja | K25: Tämä vain esimerkinomaisesti.
B26: - asiantuntijan apuna on avustaja, joka käyttää tehtävään puoli tuntia (0,5 h) ja | K26: Tämä vain esimerkinomaisesti.
B27: - johtaja tarkistaa ja hyväksyy laaditun kartan, johon kuluu 15 minuttia (0,25 h) | K27: Tämä vain esimerkinomaisesti.
B28: Lain mukaan kartta pitää toimittaa TUKESille kahdesti vuodessa (2 kertaa) | K28: Tämä vain esimerkinomaisesti.
B29: Siten laskelmaan merkittäisiin välilehdelle "2B_Työkustannus", Frekvenssi = 2, Johtajalle 0,25 tuntia, Asiantuntijalle 15,16 tuntia ja Avustajalle 0,5 tuntia | K29: Tämä vain esimerkinomaisesti.
B30: Laskentapohja laskee näistä keskimääräisen tuntipalkan ja lisää siihen palkan sivukulut sekä yleiskulun. | K30: Tämä vain esimerkinomaisesti.
B32: Esimerkki ja apulaskupohja (tämä vain tarvittaessa esimerkkinä, täytä yritysvaikutusarvioinnin tiedot välilehdelle 2B_Työkustannus)
E34: Työntekijä 1 | G34: Työntekijä 2 | I34: Työntekijä 3 | M34: Tehtävään käytetty työaika yhteensä
C35: Tehtävä | D35: Tehtävän kuvaus (välilehdeltä '1_Tehtäväluettelo') | E35: Tyypillisesti tehtävän hoitaa (Työntekijä 1) | F35: Työntekijän 1 tehtävään käyttämä aika (h) | G35: Tyypillisesti tehtävässä avustaa (Työntekijä 2) | H35: Työntekijän 2 tehtävään käyttämä aika (h) | I35: Tyypillisesti tehtävää ohjaa/tarkistaa (Työntekijä 3) | J35: Työntekijän 2 tehtävään käyttämä aika (h) | K35: Lisää tarvittaessa työntekijöitä | L35: Kuinka monta kertaa vuodessa tehtävä suoritetaan (frekvenssi) | M35: Työntekijä 1 | N35: Työntekijä 2 | O35: Työntekijä 3
B36: Esimerkki | C36: Tehtävä1 | D36: Kaivoskartan laatiminen ja toimittaminen TUKESille | E36: Asiantuntija | F36: 15.16 | G36: Avustaja | H36: 0.5 | I36: Johtaja | J36: 0.25 | L36: 2 | M36: =$L$36*F36 -> 30.32 | N36: =$L$36*H36 -> 1 | O36: =$L$36*J36 -> 0.5

Sheet Apu3_Laite tms kustannuksista
A1: Aputaulukko 3 - Lain edellyttämien hankintojen kustannuslaskennasta
A3: Edellyttääkö laki jonkin järjestelmän, ohjelmiston tai laitteen hankkimista tai päivittämistä? | E3: Kysy kohdejoukolta (yritykset, toimialajärjestö) miten näkevät nämä kustannuserät ja miten voisi tarvittaessa saada tarkempaa tietoa/arviota näistä.
A4: Jos kyllä, niin käytä apuna lain aiheuttamien kustannusten arvioinnissa seuraavaa:
A6: Jonkin järjestelmän, laitteen tms. (esim. maksupääte) hankkiminen voi aiheuttaa myös muita kustannuksia kuin itse laitteen. Kokonaiskustannusten arvioinnissa voi soveltaa ICT-hankinnoissa vakiintunutta omistamisen kokonaiskustannuksen laskentamallia - Total Cost of Ownership (TCO). | E6: Sovella tarvittaessa muihinkin kuin IT-hankintoihin
A8: Kokonaiskustannuksiin lasketaan mukaan lähtökohtaisesti seuraavat: | E8: Esimerkki | F8: eur/vuosi/yritys | G8: Kustannuserän toistuvuus
A9: 1 | B9: Laitteen (hardware) hankinta | E9: Laite | F9: 250 | G9: kertaluonteinen
A10: 2 | B10: Ohjelmiston (software) hankinta | E10: Ohjelmisto | F10: 100 | G10: kertaluonteinen
A11: 3 | B11: Asennus | E11: Asennus | F11: 1000 | G11: kertaluonteinen
A12: 4 | B12: Johtaminen ja tuki | E12: Johtaminen ja tuki | F12: 6000 | G12: toistuva yhteensä vuodessa
A13: 5 | B13: Tietoliikenneyhteydet | E13: Tietoliikenneyhteydet | F13: =20*12 -> 240 | G13: toistuva yhteensä vuodessa
A14: 6 | B14: Käyttäjäkustannukset | E14: Käyttäjäkustannukset | F14: 0 | G14: toistuva yhteensä vuodessa
B15: Vaihtoehtoiskustannukset
A16: 7 | C16: järjestelmän alhaallaoloajalle (downtime) | E16: Alhaallaoloaika | F16: 520 | G16: Toistuva
A17: 8 | C17: koulutukselle | E17: Koulutus | F17: 140 | G17: Kertaluonteinen
A18: 9 | C18: muulle resurssille, joka on pois tuotannosta | E18: Muu | F18: 0
E19: Yhteensä 1. vuosi | F19: =SUM(F9:F18) -> 8250 | G19: Kertaluonteiset + toistuvat 1. vuodelta
A20: Toisaalta laite tai järjestelmä (esim. maksupääte) voi olla käytössä joka tapauksessa (business as usual). Tällöin hankinnasta tulee kohdistaa kustannuksiin vain se osa, joka arvioidaan johtuvan nimenomaan lain velvoitteista, esimerkiksi 1 % kokonaisuudesta tai 10 %, 20 %, ... jne. tilanteen edellyttämällä tavalla. | E20: Yhteensä seuraavat vuodet | F20: =F12+F13+F16 -> 6760 | G20: Toistuvat yhteensä
E21: Huomion kiinnittäminen laitehankinnasta henkilöstökuluihin. Huom. esimerkkilaskelmassa on valittu tarkoituksella tilanne, jossa itse laite- tms. hankinta on pieni, mutta henkilöstökuluina syntyy vuosittain merkittävä kustannus.

Sheet Apu4_Yksinkert. esim. laskelma
A1: Yksinkertaistettu esimerkkilaskelma - VAIN ESIMERKINLUONTEINEN LASKELMA KOKONAISUUDEN HAHMOTTAMISEKSI
A2: Perustuu standardikustannusmallin (SCM) mukaiseen arviointiin (ks. OM 2007:6 ja SCM Network)
B4: Oletuksena velvoite, jonka hoitaa Asiantuntija (kuukausipalkka 3600 eur/kk)
B5: Esim. jokin ilmoitus kvartaaleittain, johon kuluu á 2 tuntia
B6: Toimialalla 400 yritystä
B7: Lisäksi ensimmäisenä vuonna jokaiselle yritykselle aiheutuu kertaluontoinen 1000 euron koulutuskustannus.
B9: Laskentatekijä | C9: Arvo | D9: Yksikkö | E9: Selite, huomautus
B10: Vuodessa velvoitteeseen käytetyt tunnit | C10: 8 | D10: tuntia | E10: Tehtävä 4 x á 2h = 8h. Ts. Frekvenssi = 4 ja asiantuntijan työtunnit 2,0h per kerta. Nämä syötetään välilehdelle 2.
B11: Tuntipalkkakustannus sivu- ja yleiskuluineen | C11: 34.46 | D11: euroa | E11: Saat tämän taulukon välilehden 2 avulla, kun syötät asiantuntijan kohdalle 2 tuntia (muut 0)
B12: Työntekijäkustannus vuodessa | C12: 275.7071907 | D12: euroa | E12: Tämä näkyy välilehden 2 alaosassa. Laskee automaattisesti heti, kun olet syöttänyt em. tuntimäärän välilehdelle 2
B14: Koulutuskustannus | C14: 1000 | D14: euroa
B16: Yritysten lukumäärä, kohdejoukko | C16: 400 | D16: kappaletta | E16: Lain kohteena olevien yritysten määrä. Tämä syötetään välilehdellä 2.
B18: Toistuva kustannus yhteensä koko toimialalle | C18: =C16*C12 -> 110282.8763 | E18: =275,71 euroa x 400 yritystä
B19: Kertaluontoinen kustannus koko toimialalle | C19: =C16*C14 -> 400000 | E19: =1000,00 euroa x 400 yritystä
B21: Kokonaiskustannus toimialalle ensimmäisenä vuotena | C21: =C18+C19 -> 510282.8763 | D21: euroa | E21: 1. vuoden kokonaiskustannus (kertaluonteinen + toistuva ensimmäisen vuoden osalta)
B22: Kokonaiskustannus toimialalle seuraavina vuosina | C22: =C12*C16 -> 110282.8763 | D22: euroa | E22: Vuotuinen kokonaiskustannus
B24: Vastaavasti laskettaisiin yrityksille kohdistuva säästö, jos esimerkin mukainen velvoite poistettaisiin.
B26: Nettonykyarvo
B27: Alla on esitetty myös nettonykyarvon laskenta yllä olevasta esimerkistä. Tätä lain valmistelijan ei tarvitse laskea, vaan taulukkolaskentapohja laskee sen automaattisesti. Tämä vain informaatiotarkoituksessa, jotta tulee esille lain vaikutus yli ajan (10 vuoden vaikutusjakso).
B29: Oletetaan seuraavat
B30: Palkat nousevat vuosittain reaalisesti (ei inflaatiota) | C30: 0.017 | F30: Vuosi
B31: Käytetään diskonttauskorkona reaalista sosiaalista diskonttokorkoa | C31: 0.04 | F31: 1 | G31: 2 | H31: 3 | I31: 4 | J31: 5 | K31: 6 | L31: 7 | M31: 8 | N31: 9 | O31: 10
B32: (ks. TEM:n Yksi yhdestä -loppuraportti (19.12.2017), jossa nämä perusteltu) | E32: Kustannus | F32: =C21 -> 510282.8763 | G32: =$C$18*(1+$C$30)^G31 -> 114064.3658 | H32: =$C$18*(1+$C$30)^H31 -> 116003.46 | I32: 117975.5189 | J32: 119981.1027 | K32: 122020.7814 | L32: 124095.1347 | M32: =$C$18*(1+$C$30)^M31 -> 126204.752 | N32: 128350.2328 | O32: =$C$18*(1+$C$30)^O31 -> 130532.1867 | P32: Huomioitu palkkojen reaalikasvu
E33: Nykyarvo | F33: =F32/(1+$C$31)^$F$31 -> 490656.6118 | G33: =G32/(1+$C$31)^F31 -> 109677.2748 | H33: =H32/(1+$C$31)^G31 -> 107251.7197 | I33: 104879.8067 | J33: 102560.3494 | K33: 100292.1878 | L33: 98074.18753 | M33: 95905.23915 | N33: 93784.2579 | O33: 91710.18296
E34: Yhteensä 10 v | F34: =SUM(F33:O33) -> 1394791.818
E36: Nykyarvo on | F36: =F34 -> 1394791.818
B38: Ja vielä aivan yksinkertainen esimerkki nykyarvon laskemisesta
B39: Kustannus euroa joka vuosi. | C39: 100
B40: Diskonttauskorko | C40: 0.1
F41: Vuosi
F42: 1 | G42: 2 | H42: 3
E43: Kustannus | F43: 100 | G43: 100 | H43: 100
E44: Nykyarvo | F44: =F43/(1+$C$40)^F31 -> 90.90909091 | G44: =G43/(1+$C$40)^G31 -> 82.6446281 | H44: =H43/(1+$C$40)^H31 -> 75.13148009
E45: Yhteensä | F45: =SUM(F44:O44) -> 248.6851991
E47: Nykyarvo on | F47: =F45 -> 248.6851991 | H47: Toisin sanoen, on samanarvoista saada tänään 248,7 euroa kuin saada vuoden, kahden ja kolmen kuluttua 100 euroa.
H48: Tämän voi ajatella myös niin, että jos tänään aiheutetaan yrityksille n. 250 euron kustannus, niin vuosittain toistuvana säästönä
H49: pitäisi olla 100 euroa seuraavan 3 vuoden aikana, jotta aiheutettu kustannus ja säästö olisivat nykyarvoltaan samansuuruisia.
B50: Annualisoidulla nettonykyarvolla tarkoitetaan puolestaan seuraavaa (esimerkki):
F52: Vuosittain
B53: Tarkastellaan 10 vuoden ajanjaksoa kahdessa eri tapauksessa A ja B. | D53: Kertaluonteinen kustannus | F53: toistuva kustannus | I53: Kesto (n)
B54: Tapauksessa A aiheutuu vuosittain toistuva 100 euron kustannussäästö 10 vuodelle. | D54: 0 | E54: euroa | F54: -100 | G54: euroa | H54: 10 | I54: vuotta
B55: Tapauksessa B aiheutuu 500 euron kertaluontein kustannus ensimmäisenä vuonna ja 74 euron toistuva kustannus 5 vuoden ajan, jonka jälkeen ei kustannuksia. | D55: 500 | E55: euroa | F55: 74 | G55: euroa | H55: 10 | I55: vuotta
B56: Oletetaan diskonttauskoroksi (r) | C56: 0.04
B58: Tapauksen A ja B kustannuserät kohdentuvat hyvin eri tavalla 10 vuoden ajanjaksolle. Tapauksen B toistuva erä on tapausta A itseisarvoltaan pienempi ja tapauksessa B ei aiheudu kustannuksia enää viidennen vuoden jälkeen. Tapauksessa B on merkittävämpi kertaluonteinen erä ensimmäiselle vuoden. Tapausten nykyarvot ovat itseisarvoltaan samansuuruiset (811, pyöristys huomioiden). Annualisoidun nettonykyarvon avulla myös Tapauksen B kustannuserät voidaan jakaa tasaisesti 10 vuoden ajanjaksolle, jolloin vuosittaisista eristä saadaan vertailukelpoiset. Tässä esimerkissä Tapauksen B kustannuserät on tarkoituksella valittu siten, että ne muodostavat Tapauksen A kanssa itseisarvoltaan yhtäsuuren 100 euron vuosittaisen kustannuserän 10 vuodelle. Annualisoidun nykyarvon avulla voidaan vertailla 10 vuoden ajanjaksolta vuositason kustannuseriä lakiehdotuksista, jotka lähtökohtaisesti aiheuttavat kustannuksia eri aikaan ja eri tavalla jaksottuneina. | D58: Tapaus A | F58: 1 | G58: 2 | H58: 3 | I58: 4 | J58: 5 | K58: 6 | L58: 7 | M58: 8 | N58: 9 | O58: 10
E59: Kustannus | F59: =$F$54 -> -100 | G59: =$F$54 -> -100 | H59: -100 | I59: -100 | J59: -100 | K59: -100 | L59: -100 | M59: -100 | N59: -100 | O59: -100
E60: Nykyarvo | F60: =F59/(1+$C$56)^F58 -> -96.15384615 | G60: =G59/(1+$C$56)^G58 -> -92.4556213 | H60: =H59/(1+$C$56)^H58 -> -88.89963587 | I60: =I59/(1+$C$56)^I58 -> -85.4804191 | J60: =J59/(1+$C$56)^J58 -> -82.19271068 | K60: -79.03145257 | L60: -75.99178132 | M60: -73.0690205 | N60: -70.25867356 | O60: -67.55641688
E61: Yhteensä 10 vuodelta | F61: =SUM(F60:O60) -> -811.0895779
D63: Tapaus B | F63: 1 | G63: 2 | H63: 3 | I63: 4 | J63: 5 | K63: 6 | L63: 7 | M63: 8 | N63: 9 | O63: 10
E64: Kustannus | F64: =D55+F55 -> 574 | G64: =$F$55 -> 74 | H64: =$F$55 -> 74 | I64: 74 | J64: 74 | K64: 0 | L64: 0 | M64: 0 | N64: 0 | O64: 0
E65: Nykyarvo | F65: =F64/(1+$C$56)^F63 -> 551.9230769 | G65: =G64/(1+$C$56)^G63 -> 68.41715976 | H65: 65.78573054 | I65: 63.25551014 | J65: 60.8226059 | K65: 0 | L65: 0 | M65: 0 | N65: 0 | O65: 0
E66: Yhteensä 10 vuodelta | F66: =SUM(F65:O65) -> 810.2040833
D68: Annualisoidut nykyarvot
E69: Tapaus A | F69: =($C$56*$F$61)/(1-(1+$C$56)^(-H54)) -> -100
E70: Tapaus B | F70: =($C$56*$F$66)/(1-(1+$C$56)^(-H55)) -> 99.89082653
I75: =($F$61*$C$56)/(1-(1+$C$56)^-$H$54) -> -100
I81: =($F$66*$C$56)/(1-(1+$C$56)^-$H$55) -> 99.89082653 | K81: Jossa | L81: PV | M81: Nykyarvo
L82: A | M82: Vuotuinen vakioerä
L83: r | M83: korko
L84: n | M84: Aika vuosina
B90: Huom. nykyarvon laskemisesta aiheutuu seuraava:
B92: Jos nykytilanteessa yrityksille aiheutuu 100 euron kustannus seuraavalle 4 vuodelle, | E92: Vuosi | F92: 2017 | G92: 2018 | H92: 2019 | I92: 2020 | J92: 2021 | K92: 2022
B93: täytyy se korvata vuosittaisella 108 euron säästöllä, jos säästö tulee voimaan vasta | F93: 0 | G93: 1 | H93: 2 | I93: 3 | J93: 4 | K93: 5
B94: 2 vuotta nykytilanteen jälkeen. | E94: Kustannuslisäys | F94: 100 | G94: 100 | H94: 100 | I94: 100
E95: Nykyarvo | F95: =F94/(1+$F$107)^F93 -> 100 | G95: =G94/(1+$F$107)^G93 -> 96.15384615 | H95: =H94/(1+$F$107)^H93 -> 92.4556213 | I95: =I94/(1+$F$107)^I93 -> 88.89963587
B96: Laskennassa huomioitu Annualisoitu NPV -välilehdellä myös inflaatio, mutta tässä | E96: Yhteensä | F96: =SUM(F95:N95) -> 377.5091033
B97: yksinkertaisessa esimerkissä ei ole deflatoitu elinkustannusindeksillä siten kuin
B98: varsinaisessa laskennassa tehdään deflatointi vuoden 2019 hinnoista perusvuoden | E98: Kustannussäästö_A | H98: -100 | I98: -100 | J98: -100 | K98: -100
B99: 2017 hintoihin. | E99: Nykyarvo | H99: =H98/(1+$F$107)^H93 -> -92.4556213 | I99: =I98/(1+$F$107)^I93 -> -88.89963587 | J99: =J98/(1+$F$107)^J93 -> -85.4804191 | K99: =K98/(1+$F$107)^K93 -> -82.19271068
E100: Yhteensä | F100: =SUM(F99:K99) -> -349.0283869
E102: Kustannussäästö_B | H102: -108.3006466 | I102: =H102 -> -108.3006466 | J102: =I102 -> -108.3006466 | K102: -108.3006466
E103: Nykyarvo | H103: =H102/(1+$F$107)^H93 -> -100.1300357 | I103: =I102/(1+$F$107)^I93 -> -96.2788805 | J103: =J102/(1+$F$107)^J93 -> -92.57584663 | K103: =K102/(1+$F$107)^K93 -> -89.01523715
E104: Yhteensä | F104: =SUM(F103:K103) -> -378
E107: Korko | F107: 0.04

Sheet Apu5_Tietolähteitä
A1: Tietolähteitä
A4: Tietokannat
O5: Palaa takaisin tai siirry
B6: Tilastokeskus | P6: Ohjeisiin
C7: Tilastotietokannat | P7: Tarkistuslistaan | Q7: Ohjeet ja tarkistuslista
C8: Tilastot | P8: Välilehdelle 1 | Q8: Velvoiteluettelo
D9: Esim. Yritykset | P9: Välilehdelle 2 | Q9: Työkustannukset
D10: Esim. Kauppa | P10: Välilehdelle 3 | Q10: Muut kustannuksen ja kustannukset yhteensä
D11: Esim. Rakentaminen | P11: Välilehdelle 4 | Q11: Vuosittaiset poikkeukset kustannuserissä
D12: Esim. Teollisuus | P12: Välilehdelle 5 | Q12: Yhteenveto
D13: Esim. Työmarkkinat | P13: Apu2 | Q13: Tehtäväkohtainen aika - apu hahmottamiseen
D14: Esim. Palkat ja työvoimakustannukset | P14: Apu3 | Q14: Laite tms kustannuksista
B15: Tulli - ULJAS - Tavaroiden ulkomaankauppatilastot | P15: Apu4 | Q15: Yksinkertainen esimerkkilaskelma
P16: Apu5 | Q16: Tietolähteitä
A18: Muut lähteet
B19: Toimialavirastot
B20: Yritykset
C21: Suorat yhteydet yrityksiin
C22: Kyselytutkimuksen teettäminen
D23: Käytettävissä oleva aika ja raha?
B24: Toimialaliitot ja -yhdistykset
C25: EK
C26: Suomen yrittäjät
C27: Toimialayhdistykset
B28: Aiemmat selvitykset ja lakihankkeet
B29: Kansainväliset esimerkit

Sheet Annualisoitu NPV
A1: Annualisoidun nettonykyarvon (AENPV) laskenta
A2: AENPV = Annual Equivalent Net Present Value
D4: ="Velvoite"&D18+1 -> Velvoite1 | E4: ="Velvoite"&E18+1 -> Velvoite2 | F4: Velvoite3 | G4: Velvoite4 | H4: Velvoite5 | J4: Yhteensä
C5: Sääntelyn luonne | D5: =OFFSET('1_Velvoiteluettelo'!$G$17,D18,0) -> 0 | E5: =OFFSET('1_Velvoiteluettelo'!$G$17,E18,0) -> 0 | F5: =OFFSET('1_Velvoiteluettelo'!$G$17,F18,0) -> 0 | G5: =OFFSET('1_Velvoiteluettelo'!$G$17,G18,0) -> 0 | H5: =OFFSET('1_Velvoiteluettelo'!$G$17,H18,0) -> 0
C6: Frekvenssi | D6: =OFFSET('2B_Työkustannus'!$F12,0,D18) -> 0 | E6: =OFFSET('2B_Työkustannus'!$F12,0,E18) -> 0 | F6: =OFFSET('2B_Työkustannus'!$F12,0,F18) -> 0 | G6: =OFFSET('2B_Työkustannus'!$F12,0,G18) -> 0 | H6: =OFFSET('2B_Työkustannus'!$F12,0,H18) -> 0
C7: Yritysjoukon suuruus | D7: =OFFSET('2B_Työkustannus'!$F11,0,D18) -> 0 | E7: =OFFSET('2B_Työkustannus'!$F11,0,E18) -> 0 | F7: =OFFSET('2B_Työkustannus'!$F11,0,F18) -> 0 | G7: =OFFSET('2B_Työkustannus'!$F11,0,G18) -> 0 | H7: =OFFSET('2B_Työkustannus'!$F11,0,H18) -> 0
C8: Toistuvat henkilöstömenot | D8: =IF(ISNUMBER(OFFSET('1_Velvoiteluettelo'!$F$17,D18,0)),'3_Muut kustannukset'!I21,0) -> 0 | E8: =IF(ISNUMBER(OFFSET('1_Velvoiteluettelo'!$F$17,E18,0)),'3_Muut kustannukset'!J21,0) -> 0 | F8: =IF(ISNUMBER(OFFSET('1_Velvoiteluettelo'!$F$17,F18,0)),'3_Muut kustannukset'!K21,0) -> 0 | G8: =IF(ISNUMBER(OFFSET('1_Velvoiteluettelo'!$F$17,G18,0)),'3_Muut kustannukset'!L21,0) -> 0 | H8: =IF(ISNUMBER(OFFSET('1_Velvoiteluettelo'!$F$17,H18,0)),'3_Muut kustannukset'!M21,0) -> 0 | J8: =SUM(D8:I8) -> 0
C9: josta palkat | D9: =IF(ISNUMBER(OFFSET('1_Velvoiteluettelo'!$F$17,D18,0)),D8/(1+'2B_Työkustannus'!$E$69),0) -> 0 | E9: =IF(ISNUMBER(OFFSET('1_Velvoiteluettelo'!$F$17,E18,0)),E8/(1+'2B_Työkustannus'!$E$69),0) -> 0 | F9: =IF(ISNUMBER(OFFSET('1_Velvoiteluettelo'!$F$17,F18,0)),F8/(1+'2B_Työkustannus'!$E$69),0) -> 0 | G9: =IF(ISNUMBER(OFFSET('1_Velvoiteluettelo'!$F$17,G18,0)),G8/(1+'2B_Työkustannus'!$E$69),0) -> 0 | H9: =IF(ISNUMBER(OFFSET('1_Velvoiteluettelo'!$F$17,H18,0)),H8/(1+'2B_Työkustannus'!$E$69),0) -> 0 | J9: 0
C10: josta sivu- ja yleiskulu | D10: =IF(ISNUMBER(OFFSET('1_Velvoiteluettelo'!$F$17,D18,0)),D8-D9,0) -> 0 | E10: =IF(ISNUMBER(OFFSET('1_Velvoiteluettelo'!$F$17,E18,0)),E8-E9,0) -> 0 | F10: =IF(ISNUMBER(OFFSET('1_Velvoiteluettelo'!$F$17,F18,0)),F8-F9,0) -> 0 | G10: =IF(ISNUMBER(OFFSET('1_Velvoiteluettelo'!$F$17,G18,0)),G8-G9,0) -> 0 | H10: =IF(ISNUMBER(OFFSET('1_Velvoiteluettelo'!$F$17,H18,0)),H8-H9,0) -> 0 | J10: 0
C11: Toistuvat muut kulut | D11: =IF(ISNUMBER(OFFSET('1_Velvoiteluettelo'!$F$17,D18,0)),'3_Muut kustannukset'!I28,0) -> 0 | E11: =IF(ISNUMBER(OFFSET('1_Velvoiteluettelo'!$F$17,E18,0)),'3_Muut kustannukset'!J28,0) -> 0 | F11: =IF(ISNUMBER(OFFSET('1_Velvoiteluettelo'!$F$17,F18,0)),'3_Muut kustannukset'!K28,0) -> 0 | G11: =IF(ISNUMBER(OFFSET('1_Velvoiteluettelo'!$F$17,G18,0)),'3_Muut kustannukset'!L28,0) -> 0 | H11: =IF(ISNUMBER(OFFSET('1_Velvoiteluettelo'!$F$17,H18,0)),'3_Muut kustannukset'!M28,0) -> 0 | J11: 0
C12: Kertaluontoiset henkilöstökulut | D12: =IF(ISNUMBER(OFFSET('1_Velvoiteluettelo'!$F$17,D18,0)),'3_Muut kustannukset'!I36,0) -> 0 | E12: =IF(ISNUMBER(OFFSET('1_Velvoiteluettelo'!$F$17,E18,0)),'3_Muut kustannukset'!J36,0) -> 0 | F12: =IF(ISNUMBER(OFFSET('1_Velvoiteluettelo'!$F$17,F18,0)),'3_Muut kustannukset'!K36,0) -> 0 | G12: =IF(ISNUMBER(OFFSET('1_Velvoiteluettelo'!$F$17,G18,0)),'3_Muut kustannukset'!L36,0) -> 0 | H12: =IF(ISNUMBER(OFFSET('1_Velvoiteluettelo'!$F$17,H18,0)),'3_Muut kustannukset'!M36,0) -> 0 | J12: 0
C13: josta palkat | D13: =IF(ISNUMBER(OFFSET('1_Velvoiteluettelo'!$F$17,D18,0)),D12/(1+'2B_Työkustannus'!$E$69),0) -> 0 | E13: =IF(ISNUMBER(OFFSET('1_Velvoiteluettelo'!$F$17,E18,0)),E12/(1+'2B_Työkustannus'!$E$69),0) -> 0 | F13: =IF(ISNUMBER(OFFSET('1_Velvoiteluettelo'!$F$17,F18,0)),F12/(1+'2B_Työkustannus'!$E$69),0) -> 0 | G13: =IF(ISNUMBER(OFFSET('1_Velvoiteluettelo'!$F$17,G18,0)),G12/(1+'2B_Työkustannus'!$E$69),0) -> 0 | H13: =IF(ISNUMBER(OFFSET('1_Velvoiteluettelo'!$F$17,H18,0)),H12/(1+'2B_Työkustannus'!$E$69),0) -> 0 | J13: 0
C14: josta sivu- ja yleiskulu | D14: =IF(ISNUMBER(OFFSET('1_Velvoiteluettelo'!$F$17,D18,0)),D12-D13,0) -> 0 | E14: =IF(ISNUMBER(OFFSET('1_Velvoiteluettelo'!$F$17,E18,0)),E12-E13,0) -> 0 | F14: =IF(ISNUMBER(OFFSET('1_Velvoiteluettelo'!$F$17,F18,0)),F12-F13,0) -> 0 | G14: =IF(ISNUMBER(OFFSET('1_Velvoiteluettelo'!$F$17,G18,0)),G12-G13,0) -> 0 | H14: =IF(ISNUMBER(OFFSET('1_Velvoiteluettelo'!$F$17,H18,0)),H12-H13,0) -> 0 | J14: 0
C15: Kertaluontoiset muut kulut | D15: =IF(ISNUMBER(OFFSET('1_Velvoiteluettelo'!$F$17,D18,0)),'3_Muut kustannukset'!I43,0) -> 0 | E15: =IF(ISNUMBER(OFFSET('1_Velvoiteluettelo'!$F$17,E18,0)),'3_Muut kustannukset'!J43,0) -> 0 | F15: =IF(ISNUMBER(OFFSET('1_Velvoiteluettelo'!$F$17,F18,0)),'3_Muut kustannukset'!K43,0) -> 0 | G15: =IF(ISNUMBER(OFFSET('1_Velvoiteluettelo'!$F$17,G18,0)),'3_Muut kustannukset'!L43,0) -> 0 | H15: =IF(ISNUMBER(OFFSET('1_Velvoiteluettelo'!$F$17,H18,0)),'3_Muut kustannukset'!M43,0) -> 0 | J15: 0
C16: Yrityskentän kasvuvauhti | D16: =OFFSET('4_Poikkeukset'!$C8,D18,0) -> 0 | E16: =OFFSET('4_Poikkeukset'!$C8,E18,0) -> 0 | F16: =OFFSET('4_Poikkeukset'!$C8,F18,0) -> 0 | G16: =OFFSET('4_Poikkeukset'!$C8,G18,0) -> 0 | H16: =OFFSET('4_Poikkeukset'!$C8,H18,0) -> 0
C17: apulaskuja | D17: =IF(D16>0,D16,0) -> 0 | E17: =IF(E16>0,E16,0) -> 0 | F17: =IF(F16>0,F16,0) -> 0 | G17: =IF(G16>0,G16,0) -> 0 | H17: =IF(H16>0,H16,0) -> 0
C18: apulaskuja | D18: 0 | E18: =D18+1 -> 1 | F18: =E18+1 -> 2 | G18: =F18+1 -> 3 | H18: =G18+1 -> 4 | I18: =H18+1 -> 5
C19: Perusvuosi | D19: ='1_Velvoiteluettelo'!$B$13 -> 2017 | E19: ='1_Velvoiteluettelo'!$B$13 -> 2017 | F19: ='1_Velvoiteluettelo'!$B$13 -> 2017 | G19: ='1_Velvoiteluettelo'!$B$13 -> 2017 | H19: ='1_Velvoiteluettelo'!$B$13 -> 2017
C20: Voimaantulovuosi | D20: =OFFSET('1_Velvoiteluettelo'!$F$17,D18,0) -> 0 | E20: =OFFSET('1_Velvoiteluettelo'!$F$17,E18,0) -> 0 | F20: =OFFSET('1_Velvoiteluettelo'!$F$17,F18,0) -> 0 | G20: =OFFSET('1_Velvoiteluettelo'!$F$17,G18,0) -> 0 | H20: =OFFSET('1_Velvoiteluettelo'!$F$17,H18,0) -> 0
C22: Tarkastelujakso vuosina: | D22: =IF(ISNUMBER(OFFSET('1_Velvoiteluettelo'!$E17,D18,0)),OFFSET('1_Velvoiteluettelo'!$E17,D18,0),10) -> 10 | E22: =IF(ISNUMBER(OFFSET('1_Velvoiteluettelo'!$E17,E18,0)),OFFSET('1_Velvoiteluettelo'!$E17,E18,0),10) -> 10 | F22: =IF(ISNUMBER(OFFSET('1_Velvoiteluettelo'!$E17,F18,0)),OFFSET('1_Velvoiteluettelo'!$E17,F18,0),10) -> 10 | G22: =IF(ISNUMBER(OFFSET('1_Velvoiteluettelo'!$E17,G18,0)),OFFSET('1_Velvoiteluettelo'!$E17,G18,0),10) -> 10 | H22: =IF(ISNUMBER(OFFSET('1_Velvoiteluettelo'!$E17,H18,0)),OFFSET('1_Velvoiteluettelo'!$E17,H18,0),10) -> 10
L23: Nettonykyarvon laskentakaavat
C24: Sosiaalinen diskonttokorko (reaalinen): | D24: 0.04 | L24: Toistuvat kustannuserät annuiteettina perusvuoden nykyarvoon, ml. deflatointi
C25: EKI=1951 indeksiluku 2 v. ennen perusvuotta, vka (2015) | D25: 1906
C26: EKI=1951 indeksiluku HE:n valmisteluvuotta ed v. vka (2016) | D26: 1913
C27: Kokonaiskasvu (palkkojen nousu ja yrityskentän kasvu) | D27: =(1+'Taustatietoa ATI ja EKI'!$G30)*(1+D16)-1 -> 0.01668210661 | E27: =(1+'Taustatietoa ATI ja EKI'!$G30)*(1+E16)-1 -> 0.01668210661 | F27: =(1+'Taustatietoa ATI ja EKI'!$G30)*(1+F16)-1 -> 0.01668210661 | G27: =(1+'Taustatietoa ATI ja EKI'!$G30)*(1+G16)-1 -> 0.01668210661 | H27: =(1+'Taustatietoa ATI ja EKI'!$G30)*(1+H16)-1 -> 0.01668210661
C28: NPV | D28: =D4 -> Velvoite1 | E28: =E4 -> Velvoite2 | F28: =F4 -> Velvoite3 | G28: =G4 -> Velvoite4 | H28: =H4 -> Velvoite5 | J28: Yhteensä | L28: Kertaluonteiset voimaantulovuodesta perusvuoteen, ml. deflatointi
C29: =C8 -> Toistuvat henkilöstömenot | D29: =IF(ISNUMBER(D$20),IF(D27=$D$24,D8*($D$25/$D$26)*D22*(1+$D$24)^-(D$20-D$19+1),(((D8)*($D$25/$D$26))*((1-((1+D$27)/(1+$D$24))^D$22)/($D$24-D$27))*((1+$D$24)^-(D$20-D$19)))),0) -> 0 | E29: =IF(ISNUMBER(E$20),IF(E27=$D$24,E8*($D$25/$D$26)*E22*(1+$D$24)^-(E$20-E$19+1),(((E8)*($D$25/$D$26))*((1-((1+E$27)/(1+$D$24))^E$22)/($D$24-E$27))*((1+$D$24)^-(E$20-E$19)))),0) -> 0 | F29: 0 | G29: 0 | H29: 0 | J29: =SUM(D29:I29) -> 0
C30: josta palkat | D30: =IF(ISNUMBER(D$20),IF(D27=$D$24,D9*($D$25/$D$26)*D22*(1+$D$24)^-(D$20-D$19+1),(((D9)*($D$25/$D$26))*((1-((1+D$27)/(1+$D$24))^D$22)/($D$24-D$27))*((1+$D$24)^-(D$20-D$19)))),0) -> 0 | E30: =IF(ISNUMBER(E$20),IF(E27=$D$24,E9*($D$25/$D$26)*E22*(1+$D$24)^-(E$20-E$19+1),(((E9)*($D$25/$D$26))*((1-((1+E$27)/(1+$D$24))^E$22)/($D$24-E$27))*((1+$D$24)^-(E$20-E$19)))),0) -> 0 | F30: 0 | G30: 0 | H30: 0 | J30: =SUM(D30:I30) -> 0
C31: josta sivu- ja yleiskulu | D31: =IF(ISNUMBER(D$20),IF(D27=$D$24,D10*($D$25/$D$26)*D22*(1+$D$24)^-(D$20-D$19+1),(((D10)*($D$25/$D$26))*((1-((1+D$27)/(1+$D$24))^D$22)/($D$24-D$27))*((1+$D$24)^-(D$20-D$19)))),0) -> 0 | E31: =IF(ISNUMBER(E$20),IF(E27=$D$24,E10*($D$25/$D$26)*E22*(1+$D$24)^-(E$20-E$19+1),(((E10)*($D$25/$D$26))*((1-((1+E$27)/(1+$D$24))^E$22)/($D$24-E$27))*((1+$D$24)^-(E$20-E$19)))),0) -> 0 | F31: 0 | G31: 0 | H31: 0 | J31: 0
C32: Toistuvat muut kulut | D32: =IF(ISNUMBER(D$20),IF(D16=$D$24,D11*($D$25/$D$26)*D22*(1+$D$24)^-(D$20-D$19+1),(((D11)*($D$25/$D$26))*((1-((1+D$16)/(1+$D$24))^D$22)/($D$24-D$16))*((1+$D$24)^-(D$20-D$19)))),0) -> 0 | E32: =IF(ISNUMBER(E$20),IF(E16=$D$24,E11*($D$25/$D$26)*E22*(1+$D$24)^-(E$20-E$19+1),(((E11)*($D$25/$D$26))*((1-((1+E$16)/(1+$D$24))^E$22)/($D$24-E$16))*((1+$D$24)^-(E$20-E$19)))),0) -> 0 | F32: 0 | G32: 0 | H32: 0 | J32: 0 | L32: Kertaluonteiset, jos kasvava yritysjoukko (kertaluonteiset uusille alalle tuleville yrityksille -> annuiteetti tältä osin)
C33: Kertaluontoiset henkilöstökulut | D33: =IF(AND(ISNUMBER(D$20),(D$27>0)),((D12*($D$25/$D$26))*((1+$D$24)^-(D$20-D$19+1))+((D$27*D12)*($D$25/$D$26)*(1-((1+D$27)/(1+$D$24))^D$22)/($D$24-D$27))*((1+$D$24)^-(D$20-D$19))),((D12*($D$25/$D$26))*((1+$D$24)^-(D$20-D$19+1)))) -> 0 | E33: =IF(AND(ISNUMBER(E$20),(E$27>0)),((E12*($D$25/$D$26))*((1+$D$24)^-(E$20-E$19+1))+((E$27*E12)*($D$25/$D$26)*(1-((1+E$27)/(1+$D$24))^E$22)/($D$24-E$27))*((1+$D$24)^-(E$20-E$19))),((E12*($D$25/$D$26))*((1+$D$24)^-(E$20-E$19+1)))) -> 0 | F33: 0 | G33: 0 | H33: 0 | J33: 0
C34: josta palkat | D34: =IF(AND(ISNUMBER(D$20),(D$27>0)),((D13*($D$25/$D$26))*((1+$D$24)^-(D$20-D$19+1))+((D$27*D13)*($D$25/$D$26)*(1-((1+D$27)/(1+$D$24))^D$22)/($D$24-D$27))*((1+$D$24)^-(D$20-D$19))),((D13*($D$25/$D$26))*((1+$D$24)^-(D$20-D$19+1)))) -> 0 | E34: =IF(AND(ISNUMBER(E$20),(E$27>0)),((E13*($D$25/$D$26))*((1+$D$24)^-(E$20-E$19+1))+((E$27*E13)*($D$25/$D$26)*(1-((1+E$27)/(1+$D$24))^E$22)/($D$24-E$27))*((1+$D$24)^-(E$20-E$19))),((E13*($D$25/$D$26))*((1+$D$24)^-(E$20-E$19+1)))) -> 0 | F34: 0 | G34: 0 | H34: 0 | J34: 0
C35: josta sivu- ja yleiskulu | D35: =IF(AND(ISNUMBER(D$20),(D$27>0)),((D14*($D$25/$D$26))*((1+$D$24)^-(D$20-D$19+1))+((D$27*D14)*($D$25/$D$26)*(1-((1+D$27)/(1+$D$24))^D$22)/($D$24-D$27))*((1+$D$24)^-(D$20-D$19))),((D14*($D$25/$D$26))*((1+$D$24)^-(D$20-D$19+1)))) -> 0 | E35: =IF(AND(ISNUMBER(E$20),(E$27>0)),((E14*($D$25/$D$26))*((1+$D$24)^-(E$20-E$19+1))+((E$27*E14)*($D$25/$D$26)*(1-((1+E$27)/(1+$D$24))^E$22)/($D$24-E$27))*((1+$D$24)^-(E$20-E$19))),((E14*($D$25/$D$26))*((1+$D$24)^-(E$20-E$19+1)))) -> 0 | F35: 0 | G35: 0 | H35: 0 | J35: 0
C36: Kertaluontoiset muut kulut | D36: =IF(AND(ISNUMBER(D$20),(D$16>0)),IF(D16=$D$24,(D15*($D$25/$D$26))*((1+$D$24)^-(D$20-D$19+1))+D15*$D$24*($D$25/$D$26)*D22*(1+$D$24)^-(D$20-D$19+1),((D15*($D$25/$D$26))*((1+$D$24)^-(D$20-D$19+1))+((D$16*D15)*($D$25/$D$26)*(1-((1+D$16)/(1+$D$24))^D$22)/($D$24-D$16))*((1+$D$24)^-(D$20-D$19)))),((D15*($D$25/$D$26))*((1+$D$24)^-(D$20-D$19+1)))) -> 0 | E36: =IF(AND(ISNUMBER(E$20),(E$16>0)),IF(E16=$D$24,(E15*($D$25/$D$26))*((1+$D$24)^-(E$20-E$19+1))+E15*$D$24*($D$25/$D$26)*E22*(1+$D$24)^-(E$20-E$19+1),((E15*($D$25/$D$26))*((1+$D$24)^-(E$20-E$19+1))+((E$16*E15)*($D$25/$D$26)*(1-((1+E$16)/(1+$D$24))^E$22)/($D$24-E$16))*((1+$D$24)^-(E$20-E$19)))),((E15*($D$25/$D$26))*((1+$D$24)^-(E$20-E$19+1)))) -> 0 | F36: 0 | G36: 0 | H36: 0 | J36: 0
C38: Yhteensä | D38: =D29+D32+D33+D36 -> 0 | E38: =E29+E32+E33+E36 -> 0 | F38: 0 | G38: 0 | H38: 0 | J38: =J29+J32+J33+J36 -> 0
C40: ANNUALISOITU NPV (NPV per vuosi, 1:1 -vertailuluku) | D40: =(D38*($D$24))/(1-(1+$D$24)^(-10)) -> 0 | E40: =(E38*($D$24))/(1-(1+$D$24)^(-10)) -> 0 | F40: =(F38*($D$24))/(1-(1+$D$24)^(-10)) -> 0 | G40: =(G38*($D$24))/(1-(1+$D$24)^(-10)) -> 0 | H40: =(H38*($D$24))/(1-(1+$D$24)^(-10)) -> 0 | J40: =SUM(D40:I40) -> 0
L43: PV = nykyarvo, tarkoittaa myös nettonykyarvoa NPV
L44: A = kustannuserä valmisteluvuoden nykyrahassa
L45: r = korko, reaalinen sosiaalinen diskonttokorko
L46: g = kasvutekijä = yritysjoukin %-kasvu vuodessa (jos tarpeen, ks. välilehti 4) ja palkkojen reaalikasvu (jos relevantti)
L47: T = oletettu lain voimassaoloaika, lähtökohtaisesti 10 vuotta.
L48: AENPV-kaavassa T = 10, jotta vuositasolle jyvitetyt kustannuserät ovat vertailukelpoisia.
L49: t0 = perusvuosi (2017)
L50: tf = velvoitteen tai muutoksen voimaantulovuosi
L51: C = kertaluonteinen kustannuserä valmisteluvuoden nykyrahassa

Sheet Listat (älä muuta)
B4: 1
B5: 2 | D5: EU-minimisääntelyä
B6: 3 | D6: Kansallista tai EU-minimin ylittävää sääntelyä
B7: 4 | D7: EU:n velvoittamaa sääntelyn purkua
B8: 5 | D8: Kansallisen tai EU-minimin ylittävän sääntelyn purkua
B9: 6
B10: 7
B11: 8
B12: 9
B13: toistaiseksi

Sheet Taustatietoa ATI ja EKI
A1: Taustatietoa elinkustannusindeksi (EKI) ja ansiotasoindeksi (ATI)
F4: Muutos | G4: Reaalinen muutos
E5: Yksityinen | F5: Yksityinen | G5: Yksityinen | J5: Muutos
E6: ATI 1995=100 | F6: ATI 1995=100 | G6: ATI 1995=100 | I6: EKI 1951=100 | J6: EKI 1951=100 | K6: CAGR 1995-2016
D7: 1995 | E7: 100 | I7: 1390
C8: =D8-$D$7 -> 1 | D8: 1996 | E8: 104.2 | F8: =E8/E7-1 -> 0.042 | G8: =(1+F8)/(1+J8)-1 -> 0.03603719599 | I8: 1398 | J8: =I8/I7-1 -> 0.005755395683 | K8: =$J$30 -> 0.0153242757
C9: =D9-$D$7 -> 2 | D9: 1997 | E9: 107 | F9: 0.02687140115 | G9: 0.01453443025 | I9: 1415 | J9: =I9/I8-1 -> 0.0121602289 | K9: =$J$30 -> 0.0153242757
C10: 3 | D10: 1998 | E10: 110.9 | F10: 0.03644859813 | G10: 0.0220033215 | I10: 1435 | J10: 0.01413427562 | K10: 0.0153242757
C11: 4 | D11: 1999 | E11: 114.1 | F11: 0.02885482417 | G11: 0.01680900322 | I11: 1452 | J11: 0.0118466899 | K11: 0.0153242757
C12: 5 | D12: 2000 | E12: 119.1 | F12: 0.04382120947 | G12: 0.009745766918 | I12: 1501 | J12: 0.03374655647 | K12: 0.0153242757
C13: 6 | D13: 2001 | E13: 124.8 | F13: 0.04785894207 | G13: 0.02198588177 | I13: 1539 | J13: 0.0253164557 | K13: 0.0153242757
C14: 7 | D14: 2002 | E14: 129.3 | F14: 0.03605769231 | G14: 0.02014893696 | I14: 1563 | J14: 0.01559454191 | K14: 0.0153242757
C15: 8 | D15: 2003 | E15: 134.4 | F15: 0.03944315545 | G15: 0.03021537855 | I15: 1577 | J15: 0.008957133717 | K15: 0.0153242757
C16: 9 | D16: 2004 | E16: 139.4 | F16: 0.03720238095 | G16: 0.03523300934 | I16: 1580 | J16: 0.001902346227 | K16: 0.0153242757
C17: 10 | D17: 2005 | E17: 144.8 | F17: 0.0387374462 | G17: 0.02961428168 | I17: 1594 | J17: 0.008860759494 | K17: 0.0153242757
C18: 11 | D18: 2006 | E18: 149.2 | F18: 0.03038674033 | G18: 0.01259954629 | I18: 1622 | J18: 0.01756587202 | K18: 0.0153242757
C19: 12 | D19: 2007 | E19: 154 | F19: 0.03217158177 | G19: 0.007329907118 | I19: 1662 | J19: 0.02466091245 | K19: 0.0153242757
C20: 13 | D20: 2008 | E20: 162.3 | F20: 0.0538961039 | G20: 0.01247128594 | I20: 1730 | J20: 0.04091456077 | K20: 0.0153242757
C21: 14 | D21: 2009 | E21: 168.9 | F21: 0.04066543438 | G21: 0.04066543438 | I21: 1730 | J21: 0 | K21: 0.0153242757
C22: 15 | D22: 2010 | E22: 172.8 | F22: 0.02309058615 | G22: 0.01082051058 | I22: 1751 | J22: 0.01213872832 | K22: 0.0153242757
C23: 16 | D23: 2011 | E23: 177.2 | F23: 0.02546296296 | G23: -0.009058693075 | I23: 1812 | J23: 0.03483723587 | K23: 0.0153242757
C24: 17 | D24: 2012 | E24: 182.5 | F24: 0.02990970655 | G24: 0.001715721021 | I24: 1863 | J24: 0.02814569536 | K24: 0.0153242757
C25: 18 | D25: 2013 | E25: 186.5 | F25: 0.02191780822 | G25: 0.007318982387 | I25: 1890 | J25: 0.01449275362 | K25: 0.0153242757
C26: 19 | D26: 2014 | E26: 189.6 | F26: 0.01662198391 | G26: 0.005976727538 | I26: 1910 | J26: 0.01058201058 | K26: 0.0153242757
C27: 20 | D27: 2015 | E27: 192.5 | F27: 0.01529535865 | G27: 0.01742609393 | I27: 1906 | J27: -0.002094240838 | K27: 0.0153242757
C28: =D28-$D$7 -> 21 | D28: 2016 | E28: 194.8 | F28: =E28/E27-1 -> 0.01194805195 | G28: 0.008245157874 | I28: 1913 | J28: 0.003672612802 | K28: 0.0153242757
C30: CAGR | F30: =(E28/E7)^(1/$C$28)-1 -> 0.03226202351 | G30: =(1+F30)/(1+J30)-1 -> 0.01668210661 | J30: =(I28/I7)^(1/$C$28)-1 -> 0.0153242757
C33: Muuttuja | D33: Arvo | E33: Lähde
C34: Ansiotasoindeksin nimellismuutos keskimäärin 1995 - 2016 | D34: =F30 -> 0.03226202351 | E34: Tilastokeskus, ATI=1995, laatijan laskelmat
C35: Ansiotasoindeksin reaalimuutos keskimäärin 1995 - 2016 | D35: =G30 -> 0.01668210661 | E35: Tilastokeskus, ATI=1995 ja EKI=1951, laatijan laskelmat Fisherin relaatiolla
C36: Inflaatio keskimäärin 1995 - 2016 | D36: =J30 -> 0.0153242757 | E36: Tilastokeskus, EKI=1951, vuosikeskiarvo, laatijan laskelmat
E38: ks. myös esim.
E39: http://stat.fi/til/ati/2017/01/ati_2017_01_2017-05-30_tie_001_fi.html

Sheet Taustatietoa palkat am lk
A1: Yksityisen sektorin kuukausipalkkaisten ansiot ammattiluokituksen (AML 2010) mukaan vuonna 2016
A3: Ammattiluokka | B3: Säännöllisen työajan keskiansio
A4: S Yhteensä | B4: 3596
A5: 1 Johtajat | B5: 6577
A6: 11 Johtajat, ylimmät virkamiehet ja järjestöjen johtajat | B6: 6857
A7: 111 Ylimmät virkamiehet ja järjestöjen johtajat | B7: 5891
A8: 1112 Julkishallinnon ylimmät virkamiehet | B8: ..
A9: 1114 Järjestöjen johtajat | B9: 5893
A10: 11141 Työmarkkina- ja elinkeinoelämän järjestöjen johtajat | B10: 8870
A11: 11142 Muiden järjestöjen johtajat | B11: 4573
A12: 12 Hallintojohtajat ja kaupalliset johtajat | B12: 6862
A13: 121 Liiketoiminta- ja hallintojohtajat | B13: 7006
A14: 1211 Talousjohtajat | B14: 7081
A15: 1212 Henkilöstöjohtajat | B15: 6672
A16: 1213 Politiikka- ja suunnittelujohtajat | B16: 7725
A17: 1219 Muut hallintojohtajat ja kaupalliset johtajat | B17: 6781
A18: 122 Myynti-, markkinointi- ja kehitysjohtajat | B18: 6755
A19: 1221 Myynti- ja markkinointijohtajat | B19: 6957
A20: 1222 Mainos- ja tiedotusjohtajat | B20: 6303
A21: 1223 Tutkimus- ja kehitysjohtajat | B21: 6526
A22: 13 Tuotantotoiminnan ja yhteiskunnan peruspalvelujen johtajat | B22: 6217
A23: 131 Maa-, metsä- ja kalatalouden johtajat | B23: 4943
A24: 1311 Maa- ja metsätalouden johtajat | B24: 5033
A25: 1312 Vesiviljely- ja kalatalouden johtajat | B25: ..
A26: 132 Teollisuuden tuotantojohtajat sekä kaivos-, rakennus- ja jakelujohtajat | B26: 5826
A27: 1321 Teollisuuden tuotantojohtajat | B27: 5623
A28: 1322 Kaivostoiminnan tuotantojohtajat | B28: ..
A29: 1323 Rakennustoiminnan tuotantojohtajat | B29: 5932
A30: 1324 Hankinta- ja jakelujohtajat | B30: 5972
A31: 133 Tieto- ja viestintäteknologiajohtajat | B31: 6721
A32: 1330 Tieto- ja viestintäteknologiajohtajat | B32: 6721
A33: 134 Yhteiskunnan peruspalvelujen sekä rahoitus- ja vakuutuspalvelujen johtajat | B33: 6486
A34: 1341 Lastenhoidon johtajat | B34: 3206
A35: 1342 Terveydenhuollon johtajat | B35: 6984
A36: 1343 Vanhustenhuollon johtajat | B36: ..
A37: 1344 Sosiaalihuollon johtajat | B37: 4350
A38: 1345 Opetusalan johtajat | B38: 5886
A39: 1346 Rahoitus- ja vakuutuspalvelujen johtajat | B39: 8395
A40: 1349 Muut yhteiskunnan palvelujen johtajat | B40: 5797
A41: 14 Hotelli- ja ravintola-alan, vähittäiskaupan ja muiden palvelualojen johtajat | B41: 5633
A42: 141 Hotellin- ja ravintolanjohtajat | B42: 4111
A43: 1411 Hotellinjohtajat | B43: 4040
A44: 1412 Ravintolanjohtajat | B44: ..
A45: 142 Vähittäis- ja tukkukaupan johtajat | B45: 6570
A46: 1420 Vähittäis- ja tukkukaupan johtajat | B46: 6570
A47: 143 Muiden palvelualojen johtajat | B47: 5506
A48: 1431 Urheilu-, vapaa-aika- ja kulttuurikeskusten johtajat | B48: 5267
A49: 1439 Muut palvelualojen johtajat | B49: 5798
A50: 2 Erityisasiantuntijat | B50: 4475
A51: 21 Luonnontieteiden ja tekniikan erityisasiantuntijat | B51: 4469
A52: 211 Luonnon- ja geotieteen erityisasiantuntijat | B52: 4020
A53: 2111 Fyysikot ja astronomit | B53: 3483
A54: 2112 Meteorologit | B54: ..
A55: 2113 Kemistit | B55: 4321
A56: 2114 Geologit ja geofyysikot | B56: 4362
A57: 212 Matematiikan ja tilastotieteen erityisasiantuntijat | B57: 4116
A58: 2120 Matemaatikot, aktuaarit ja tilastotieteilijät | B58: 4116
A59: 213 Biotieteiden erityisasiantuntijat | B59: 3631
A60: 2131 Biologit, kasvi- ja eläintieteilijät ym. erityisasiantuntijat | B60: 3832
A61: 2132 Maa-, metsä- ja kalatalouden erityisasiantuntijat | B61: 3305
A62: 21321 Maa- ja kalatalouden erityisasiantuntijat | B62: 3046
A63: 21322 Metsätalouden erityisasiantuntijat | B63: 3307
A64: 2133 Ympäristön- ja luonnonsuojelun erityisasiantuntijat | B64: 4079
A65: 214 Tekniikan erityisasiantuntijat (pl. sähköteknologia) | B65: 4606
A66: 2141 Teollisen valmistuksen ja tuotantotekniikan erityisasiantuntijat | B66: 4714
A67: 2142 Maa- ja vesirakentamisen erityisasiantuntijat | B67: 4644
A68: 2143 Ympäristötekniikan erityisasiantuntijat | B68: 3198
A69: 2144 Konetekniikan erityisasiantuntijat | B69: 4492
A70: 2145 Puunjalostuksen ja kemian prosessitekniikan erityisasiantuntijat | B70: 4754
A71: 2146 Kaivosteollisuuden, metallurgian ym. erityisasiantuntijat | B71: 4587
A72: 2149 Muut tekniikan erityisasiantuntijat | B72: 4578
A73: 215 Sähköteknologian erityisasiantuntijat | B73: 4708
A74: 2151 Sähkötekniikan erityisasiantuntijat | B74: 4585
A75: 2152 Elektroniikan erityisasiantuntijat | B75: 4710
A76: 2153 ICT-alan erityisasiantuntijat | B76: 4825
A77: 21531 Tietoliikenneteknologian tutkijat | B77: 5101
A78: 21532 Tietotekniikka-alan tutkijat | B78: 3404
A79: 216 Arkkitehdit, suunnittelijat ja maanmittaajat | B79: 4084
A80: 2161 Talonrakennuksen arkkitehdit | B80: 4083
A81: 2162 Maisema-arkkitehdit | B81: ..
A82: 2163 Tuote- ja vaatesuunnittelijat | B82: 3447
A83: 2164 Yhdyskunta- ja liikennesuunnittelijat | B83: 4672
A84: 2165 Kartoituksen ja maanmittauksen erityisasiantuntijat | B84: 4280
A85: 2166 Graafiset ja multimediasuunnittelijat | B85: 3598
A86: 22 Terveydenhuollon erityisasiantuntijat | B86: 4792
A87: 221 Lääkärit | B87: 6772
A88: 2211 Yleislääkärit | B88: 6898
A89: 2212 Ylilääkärit ja erikoislääkärit | B89: 6684
A90: 22121 Ylilääkärit | B90: 8429
A91: 22122 Erikoislääkärit | B91: 6433
A92: 222 Hoitotyön erityisasiantuntijat | B92: 3313
A93: 2221 Ylihoitajat ja osastonhoitajat | B93: 3313
A94: 22211 Ylihoitajat | B94: 4323
A95: 22212 Osastonhoitajat | B95: 3287
A96: 225 Eläinlääkärit | B96: 4153
A97: 2250 Eläinlääkärit | B97: 4153
A98: 226 Muut terveydenhuollon erityisasiantuntijat | B98: 4991
A99: 2261 Hammaslääkärit | B99: 6606
A100: 2262 Proviisorit | B100: 4553
A101: 2263 Ympäristöterveyden ja työsuojelun erityisasiantuntijat | B101: 5245
A102: 2265 Ravitsemusalan erityisasiantuntijat | B102: 2925
A103: 2266 Kuulontutkijat ja puheterapeutit | B103: ..
A104: 2269 Muut muualla luokittelemattomat terveydenhuollon erityisasiantuntijat | B104: 3951
A105: 23 Opettajat ja muut opetusalan erityisasiantuntijat | B105: 3967
A106: 231 Yliopisto- ja korkeakouluopettajat | B106: 4610
A107: 2310 Yliopistojen ja ammattikorkeakoulujen opettajat | B107: 4610
A108: 23101 Professorit | B108: 6639
A109: 23102 Lehtorit ja yliassistentit (yliopisto) | B109: 4198
A110: 23103 Assistentit ja tuntiopettajat (yliopisto) | B110: 3147
A111: 23104 Yliopettajat (AMK) | B111: 5541
A112: 23105 Lehtorit (AMK) | B112: 4569
A113: 23106 Tuntiopettajat ym. (AMK) | B113: 4059
A114: 232 Ammatillisen koulutuksen opettajat | B114: 3738
A115: 2320 Ammatillisen koulutuksen opettajat | B115: 3738
A116: 233 Lukion ja peruskoulun yläluokkien opettajat | B116: 3891
A117: 2330 Lukion ja peruskoulun yläluokkien opettajat | B117: 3891
A118: 23304 Muut peruskoulun yläluokkien ja lukion opettajat | B118: 3891
A119: 234 Peruskoulun alaluokkien opettajat ja lastentarhanopettajat | B119: 2570
A120: 2341 Peruskoulun alaluokkien opettajat | B120: 3304
A121: 23411 Luokanopettajat | B121: 3228
A122: 23412 Aineenopettajat (peruskoulun alaluokat) | B122: 3426
A123: 2342 Lastentarhanopettajat | B123: 2363
A124: 235 Muut opetusalan erityisasiantuntijat | B124: 3317
A125: 2351 Opetusmenetelmien erityisasiantuntijat | B125: 3610
A126: 2352 Erityisopettajat | B126: 4049
A127: 2354 Muut musiikin opettajat | B127: 2898
A128: 2355 Muut taideaineiden opettajat | B128: 3139
A129: 2356 Muut tietotekniikan opettajat ja kouluttajat | B129: ..
A130: 2359 Opinto-ohjaajat ja muut opetuksen erityisasiantuntijat | B130: 3099
A131: 23591 Opinto-ohjaajat | B131: 2605
A132: 23592 Muut opetuksen erityisasiantuntijat | B132: 3427
A133: 24 Liike-elämän ja hallinnon erityisasiantuntijat | B133: 4867
A134: 241 Rahoitusalan erityisasiantuntijat | B134: 4876
A135: 2411 Laskentatoimen erityisasiantuntijat ja tilintarkastajat | B135: 4703
A136: 2412 Rahoitus- ja sijoitusneuvojat | B136: 5262
A137: 2413 Rahoitusanalyytikot | B137: 5135
A138: 242 Hallinnon erityisasiantuntijat | B138: 4760
A139: 2421 Johtamisen ja organisaatioiden erityisasiantuntijat | B139: 5262
A140: 2422 Hallinnon ja elinkeinojen kehittämisen erityisasiantuntijat | B140: 4674
A141: 2423 Henkilöstöhallinnon erityisasiantuntijat ja urasuunnittelijat | B141: 4502
A142: 2424 Henkilöstön kehittämisen erityisasiantuntijat ja kouluttajat | B142: 3745
A143: 243 Myynnin, markkinoinnin ja tiedotuksen erityisasiantuntijat | B143: 4930
A144: 2431 Mainonnan ja markkinoinnin erityisasiantuntijat | B144: 4799
A145: 2432 Tiedottajat | B145: 3992
A146: 2433 Myynti-insinöörit ja lääke-esittelijät (pl. tieto- ja viestintätekniikka) | B146: 5080
A147: 2434 Tieto- ja viestintätekniikan myynnin erityisasiantuntijat | B147: 6024
A148: 25 Tieto- ja viestintäteknologian erityisasiantuntijat | B148: 4661
A149: 251 Systeemityön erityisasiantuntijat | B149: 4651
A150: 2511 Sovellusarkkitehdit | B150: 4861
A151: 2512 Sovellussuunnittelijat | B151: 4610
A152: 2513 Web- ja multimediakehittäjät | B152: 3261
A153: 2514 Sovellusohjelmoijat | B153: 3256
A154: 2519 Muut ohjelmisto- ja sovelluskehittäjät | B154: 4668
A155: 252 Tietokantojen,- verkkojen ja järjestelmäohjelmistojen erityisasiantuntijat | B155: 4702
A156: 2521 Tietokantasuunnittelijat ja -vastaavat | B156: 3317
A157: 2522 Tietojärjestelmien ylläpitäjät | B157: 4185
A158: 2523 Tietoverkkojen erityisasiantuntijat | B158: 4927
A159: 2529 Muut tietokanta- ja tietoverkkojen erityisasiantuntijat | B159: 4689
A160: 26 Lainopilliset, sosiaalialan ja kulttuurialan erityisasiantuntijat | B160: 3986
A161: 261 Lainopilliset erityisasiantuntijat | B161: 5666
A162: 2611 Asianajajat | B162: 5995
A163: 2619 Muut lainopilliset erityisasiantuntijat | B163: 5056
A164: 262 Kirjaston- ja arkistonhoitajat sekä museoalan erityisasiantuntijat | B164: 3457
A165: 2621 Arkistonhoitajat ja museoalan erityisasiantuntijat | B165: 3246
A166: 26211 Arkistonhoitajat | B166: 2983
A167: 26212 Museoalan erityisasiantuntijat | B167: 3322
A168: 2622 Kirjastonhoitajat, informaatikot ym. | B168: 3574
A169: 263 Yhteiskunta- ja sosiaalialan sekä uskonnollisen elämän erityisasiantuntijat | B169: 3548
A170: 2631 Ekonomistit | B170: 4640
A171: 2632 Yhteiskunta- ja kulttuuritutkijat | B171: 3486
A172: 2633 Historioitsijat, politiikan tutkijat ja filosofit | B172: 3159
A173: 2634 Psykologit | B173: 3854
A174: 2635 Sosiaalityön erityisasiantuntijat | B174: 3050
A175: 26351 Sosiaalityöntekijät ym. | B175: 3153
A176: 26352 Sosiaalialan suunnittelijat ym. | B176: 2807
A177: 2636 Papit ym. uskonnollisen elämän erityisasiantuntijat | B177: 3739
A178: 264 Toimittajat, kirjailijat ja kielitieteilijät | B178: 3801
A179: 2641 Kirjailijat ym. | B179: 3693
A180: 2642 Toimittajat | B180: 3874
A181: 26421 Toimituspäälliköt ja -sihteerit, ohjelmapäälliköt | B181: 4084
A182: 26422 Lehtien yms. toimittajat | B182: 3777
A183: 2643 Kääntäjät, tulkit ja muut kielitieteilijät | B183: 3185
A184: 265 Taiteilijat | B184: 3285
A185: 2651 Kuvataiteilijat | B185: 3111
A186: 2652 Muusikot, laulajat ja säveltäjät | B186: 3046
A187: 2653 Tanssitaiteilijat ja koreografit | B187: 2567
A188: 2654 Ohjaajat ja tuottajat | B188: 3911
A189: 2655 Näyttelijät | B189: 3186
A190: 2659 Muut taiteilijat | B190: ..
A191: 3 Asiantuntijat | B191: 3590
A192: 31 Luonnontieteiden ja tekniikan asiantuntijat | B192: 3597
A193: 311 Fysiikan, kemian ja teknisten alojen asiantuntijat | B193: 3611
A194: 3111 Luonnontieteen tekniset asiantuntijat | B194: 2916
A195: 3112 Rakentamisen asiantuntijat | B195: 3490
A196: 31121 Talonrakentamisen asiantuntijat | B196: 3486
A197: 31122 Maa- ja vesirakentamisen asiantuntijat | B197: 3467
A198: 31123 Kartoituksen ja maanmittauksen asiantuntijat | B198: 3372
A199: 3113 Sähkötekniikan asiantuntijat | B199: 3735
A200: 3114 Elektroniikan asiantuntijat | B200: 3649
A201: 3115 Konetekniikan asiantuntijat | B201: 3660
... 368 more rows
